{"text_format":"1","workbook":"xlsx","n_sheets":5,"sheets":["Выполненные заказы","Закупка","Прочие расходы","Склад","Отчет"],"not_rendered":{"charts":1,"images":1,"macros":1,"external_links":0,"defined_names":2,"comments":0,"pivot_tables":0},"unopened":[],"bounds":{"document_bytes":16777216,"sheet_cells":100000,"rows_first":2000,"rows_last":500,"rows_between":2000,"halvings":0,"cell_chars":16384,"cell_head_chars":4096},"cells_cut":0,"cells_raw":0,"read":"whole","date_system":"1900"}

{"sheet":"Выполненные заказы","index":0,"n_rows":429,"n_cols":15,"rows_kept":429,"cut":false,"hidden":false,"merged":[[1,6,1,7],[4,1,4,3],[28,3,28,4],[28,5,28,6],[5,1,5,3],[6,1,6,3],[7,1,7,3],[8,1,8,3],[9,1,9,3],[10,1,10,3],[11,1,11,3],[12,1,12,3],[13,1,13,3],[14,1,14,3],[15,1,15,3],[16,1,16,3],[27,1,27,3],[14,4,14,6],[15,4,15,6],[16,4,16,5],[17,4,17,5],[22,1,22,3],[23,1,23,3],[24,1,24,3],[25,1,25,3],[26,1,26,3],[17,1,17,3],[18,1,18,3],[19,1,19,3],[20,1,20,3],[21,1,21,3]]}
[]
[null,null,null,null,null,"ДАТА",null,null,null,null,null,"Пройдено километров"]
[]
[null,null,null,null,null,null,null,null,null,null,null,"Расход топлива (литров)",null,null,{"$f":"O2*0.07","v":0}]
[null,"Зап.части",null,null,"Кол-во","Цена","Сумма"]
[null,null,null,null,null,{"$f":"VLOOKUP(B6,Склад!A2:D671,4,FALSE)","v":{"$error":"#N/A"}},{"$f":"IF(ISERROR(F6),0,E6*F6)","v":0},null,null,{"$f":"Склад!A2","v":"Гвозди"},null,"Цена за литр",null,null,30]
[null,null,null,null,null,{"$f":"VLOOKUP(B7,Склад!A3:D672,4,FALSE)","v":{"$error":"#N/A"}},{"$f":"IF(ISERROR(F7),0,E7*F7)","v":0},null,null,{"$f":"Склад!A3","v":"Какашки"}]
[null,null,null,null,null,{"$f":"VLOOKUP(B8,Склад!A4:D673,4,FALSE)","v":{"$error":"#N/A"}},{"$f":"IF(ISERROR(F8),0,E8*F8)","v":0},null,null,{"$f":"Склад!A4","v":"Компрессор"}]
[null,null,null,null,null,{"$f":"VLOOKUP(B9,Склад!A5:D674,4,FALSE)","v":{"$error":"#N/A"}},0,null,null,{"$f":"Склад!A5","v":"Масляный фильтр"}]
[null,null,null,null,null,{"$f":"VLOOKUP(B10,Склад!A6:D675,4,FALSE)","v":{"$error":"#N/A"}},0,null,null,{"$f":"Склад!A6","v":"Миномет"}]
[null,null,null,null,null,{"$f":"VLOOKUP(B11,Склад!A7:D676,4,FALSE)","v":{"$error":"#N/A"}},0,null,null,{"$f":"Склад!A7","v":"Припой"}]
[null,null,null,null,null,{"$f":"VLOOKUP(B12,Склад!A8:D677,4,FALSE)","v":{"$error":"#N/A"}},0,null,null,{"$f":"Склад!A8","v":"Терморегулятор"}]
[null,null,null,null,null,{"$f":"VLOOKUP(B13,Склад!A9:D678,4,FALSE)","v":{"$error":"#N/A"}},0,null,null,{"$f":"Склад!A9","v":"Фантики"}]
[null,null,null,null,null,null,null,null,null,{"$f":"Склад!A10","v":"Фреон"}]
[null,"Топливо",null,null,{"$f":"O4*O6","v":0},null,null,null,null,{"$f":"Склад!A11","v":0}]
[null,"Ремонт",null,null,null,null,null,null,null,{"$f":"Склад!A12","v":0}]
[null,null,null,null,null,null,null,null,null,{"$f":"Склад!A13","v":0}]
[null,null,null,null,"ИТОГО",null,{"$f":"SUM(G6:G13)+E15+E16","v":0},null,null,{"$f":"Склад!A14","v":0}]
[null,null,null,null,null,null,null,null,null,{"$f":"Склад!A15","v":0}]
[null,null,null,null,null,null,null,null,null,{"$f":"Склад!A16","v":0}]
[null,null,null,null,null,null,null,null,null,{"$f":"Склад!A17","v":0}]
[null,null,null,null,null,null,null,null,null,{"$f":"Склад!A18","v":0}]
[null,null,null,null,null,null,null,null,null,{"$f":"Склад!A19","v":0}]
[null,null,null,null,null,null,null,null,null,{"$f":"Склад!A20","v":0}]
[null,null,null,null,null,null,null,null,null,{"$f":"Склад!A21","v":0}]
[null,null,null,null,null,null,null,null,null,{"$f":"Склад!A22","v":0}]
[null,null,null,null,null,null,null,null,null,{"$f":"Склад!A23","v":0}]
[null,null,null,null,null,null,null,null,null,{"$f":"Склад!A24","v":0}]
[null,null,null,null,null,null,null,null,null,{"$f":"Склад!A25","v":0}]
[null,null,null,null,null,null,null,null,null,{"$f":"Склад!A26","v":0}]
[null,null,null,null,null,null,null,null,null,{"$f":"Склад!A27","v":0}]
[null,null,null,null,null,null,null,null,null,{"$f":"Склад!A28","v":0}]
[null,null,null,null,null,null,null,null,null,{"$f":"Склад!A29","v":0}]
[null,null,null,null,null,null,null,null,null,{"$f":"Склад!A30","v":0}]
[null,null,null,null,null,null,null,null,null,{"$f":"Склад!A31","v":0}]
[null,null,null,null,null,null,null,null,null,{"$f":"Склад!A32","v":0}]
[null,null,null,null,null,null,null,null,null,{"$f":"Склад!A33","v":0}]
[null,null,null,null,null,null,null,null,null,{"$f":"Склад!A34","v":0}]
[null,null,null,null,null,null,null,null,null,{"$f":"Склад!A35","v":0}]
[null,null,null,null,null,null,null,null,null,{"$f":"Склад!A36","v":0}]
[null,null,null,null,null,null,null,null,null,{"$f":"Склад!A37","v":0}]
[null,null,null,null,null,null,null,null,null,{"$f":"Склад!A38","v":0}]
[null,null,null,null,null,null,null,null,null,{"$f":"Склад!A39","v":0}]
[null,null,null,null,null,null,null,null,null,{"$f":"Склад!A40","v":0}]
[null,null,null,null,null,null,null,null,null,{"$f":"Склад!A41","v":0}]
[null,null,null,null,null,null,null,null,null,{"$f":"Склад!A42","v":0}]
[null,null,null,null,null,null,null,null,null,{"$f":"Склад!A43","v":0}]
[null,null,null,null,null,null,null,null,null,{"$f":"Склад!A44","v":0}]
[null,null,null,null,null,null,null,null,null,{"$f":"Склад!A45","v":0}]
[null,null,null,null,null,null,null,null,null,{"$f":"Склад!A46","v":0}]
[null,null,null,null,null,null,null,null,null,{"$f":"Склад!A47","v":0}]
[null,null,null,null,null,null,null,null,null,{"$f":"Склад!A48","v":0}]
[null,null,null,null,null,null,null,null,null,{"$f":"Склад!A49","v":0}]
[null,null,null,null,null,null,null,null,null,{"$f":"Склад!A50","v":0}]
[null,null,null,null,null,null,null,null,null,{"$f":"Склад!A51","v":0}]
[null,null,null,null,null,null,null,null,null,{"$f":"Склад!A52","v":0}]
[null,null,null,null,null,null,null,null,null,{"$f":"Склад!A53","v":0}]
[null,null,null,null,null,null,null,null,null,{"$f":"Склад!A54","v":0}]
[null,null,null,null,null,null,null,null,null,{"$f":"Склад!A55","v":0}]
[null,null,null,null,null,null,null,null,null,{"$f":"Склад!A56","v":0}]
[null,null,null,null,null,null,null,null,null,{"$f":"Склад!A57","v":0}]
[null,null,null,null,null,null,null,null,null,{"$f":"Склад!A58","v":0}]
[null,null,null,null,null,null,null,null,null,{"$f":"Склад!A59","v":0}]
[null,null,null,null,null,null,null,null,null,{"$f":"Склад!A60","v":0}]
[null,null,null,null,null,null,null,null,null,{"$f":"Склад!A61","v":0}]
[null,null,null,null,null,null,null,null,null,{"$f":"Склад!A62","v":0}]
[null,null,null,null,null,null,null,null,null,{"$f":"Склад!A63","v":0}]
[null,null,null,null,null,null,null,null,null,{"$f":"Склад!A64","v":0}]
[null,null,null,null,null,null,null,null,null,{"$f":"Склад!A65","v":0}]
[null,null,null,null,null,null,null,null,null,{"$f":"Склад!A66","v":0}]
[null,null,null,null,null,null,null,null,null,{"$f":"Склад!A67","v":0}]
[null,null,null,null,null,null,null,null,null,{"$f":"Склад!A68","v":0}]
[null,null,null,null,null,null,null,null,null,{"$f":"Склад!A69","v":0}]
[null,null,null,null,null,null,null,null,null,{"$f":"Склад!A70","v":0}]
[null,null,null,null,null,null,null,null,null,{"$f":"Склад!A71","v":0}]
[null,null,null,null,null,null,null,null,null,{"$f":"Склад!A72","v":0}]
[null,null,null,null,null,null,null,null,null,{"$f":"Склад!A73","v":0}]
[null,null,null,null,null,null,null,null,null,{"$f":"Склад!A74","v":0}]
[null,null,null,null,null,null,null,null,null,{"$f":"Склад!A75","v":0}]
[null,null,null,null,null,null,null,null,null,{"$f":"Склад!A76","v":0}]
[null,null,null,null,null,null,null,null,null,{"$f":"Склад!A77","v":0}]
[null,null,null,null,null,null,null,null,null,{"$f":"Склад!A78","v":0}]
[null,null,null,null,null,null,null,null,null,{"$f":"Склад!A79","v":0}]
[null,null,null,null,null,null,null,null,null,{"$f":"Склад!A80","v":0}]
[null,null,null,null,null,null,null,null,null,{"$f":"Склад!A81","v":0}]
[null,null,null,null,null,null,null,null,null,{"$f":"Склад!A82","v":0}]
[null,null,null,null,null,null,null,null,null,{"$f":"Склад!A83","v":0}]
[null,null,null,null,null,null,null,null,null,{"$f":"Склад!A84","v":0}]
[null,null,null,null,null,null,null,null,null,{"$f":"Склад!A85","v":0}]
[null,null,null,null,null,null,null,null,null,{"$f":"Склад!A86","v":0}]
[null,null,null,null,null,null,null,null,null,{"$f":"Склад!A87","v":0}]
[null,null,null,null,null,null,null,null,null,{"$f":"Склад!A88","v":0}]
[null,null,null,null,null,null,null,null,null,{"$f":"Склад!A89","v":0}]
[null,null,null,null,null,null,null,null,null,{"$f":"Склад!A90","v":0}]
[null,null,null,null,null,null,null,null,null,{"$f":"Склад!A91","v":0}]
[null,null,null,null,null,null,null,null,null,{"$f":"Склад!A92","v":0}]
[null,null,null,null,null,null,null,null,null,{"$f":"Склад!A93","v":0}]
[null,null,null,null,null,null,null,null,null,{"$f":"Склад!A94","v":0}]
[null,null,null,null,null,null,null,null,null,{"$f":"Склад!A95","v":0}]
[null,null,null,null,null,null,null,null,null,{"$f":"Склад!A96","v":0}]
[null,null,null,null,null,null,null,null,null,{"$f":"Склад!A97","v":0}]
[null,null,null,null,null,null,null,null,null,{"$f":"Склад!A98","v":0}]
[null,null,null,null,null,null,null,null,null,{"$f":"Склад!A99","v":0}]
[null,null,null,null,null,null,null,null,null,{"$f":"Склад!A100","v":0}]
[null,null,null,null,null,null,null,null,null,{"$f":"Склад!A101","v":0}]
[null,null,null,null,null,null,null,null,null,{"$f":"Склад!A102","v":0}]
[null,null,null,null,null,null,null,null,null,{"$f":"Склад!A103","v":0}]
[null,null,null,null,null,null,null,null,null,{"$f":"Склад!A104","v":0}]
[null,null,null,null,null,null,null,null,null,{"$f":"Склад!A105","v":0}]
[null,null,null,null,null,null,null,null,null,{"$f":"Склад!A106","v":0}]
[null,null,null,null,null,null,null,null,null,{"$f":"Склад!A107","v":0}]
[null,null,null,null,null,null,null,null,null,{"$f":"Склад!A108","v":0}]
[null,null,null,null,null,null,null,null,null,{"$f":"Склад!A109","v":0}]
[null,null,null,null,null,null,null,null,null,{"$f":"Склад!A110","v":0}]
[null,null,null,null,null,null,null,null,null,{"$f":"Склад!A111","v":0}]
[null,null,null,null,null,null,null,null,null,{"$f":"Склад!A112","v":0}]
[null,null,null,null,null,null,null,null,null,{"$f":"Склад!A113","v":0}]
[null,null,null,null,null,null,null,null,null,{"$f":"Склад!A114","v":0}]
[null,null,null,null,null,null,null,null,null,{"$f":"Склад!A115","v":0}]
[null,null,null,null,null,null,null,null,null,{"$f":"Склад!A116","v":0}]
[null,null,null,null,null,null,null,null,null,{"$f":"Склад!A117","v":0}]
[null,null,null,null,null,null,null,null,null,{"$f":"Склад!A118","v":0}]
[null,null,null,null,null,null,null,null,null,{"$f":"Склад!A119","v":0}]
[null,null,null,null,null,null,null,null,null,{"$f":"Склад!A120","v":0}]
[null,null,null,null,null,null,null,null,null,{"$f":"Склад!A121","v":0}]
[null,null,null,null,null,null,null,null,null,{"$f":"Склад!A122","v":0}]
[null,null,null,null,null,null,null,null,null,{"$f":"Склад!A123","v":0}]
[null,null,null,null,null,null,null,null,null,{"$f":"Склад!A124","v":0}]
[null,null,null,null,null,null,null,null,null,{"$f":"Склад!A125","v":0}]
[null,null,null,null,null,null,null,null,null,{"$f":"Склад!A126","v":0}]
[null,null,null,null,null,null,null,null,null,{"$f":"Склад!A127","v":0}]
[null,null,null,null,null,null,null,null,null,{"$f":"Склад!A128","v":0}]
[null,null,null,null,null,null,null,null,null,{"$f":"Склад!A129","v":0}]
[null,null,null,null,null,null,null,null,null,{"$f":"Склад!A130","v":0}]
[null,null,null,null,null,null,null,null,null,{"$f":"Склад!A131","v":0}]
[null,null,null,null,null,null,null,null,null,{"$f":"Склад!A132","v":0}]
[null,null,null,null,null,null,null,null,null,{"$f":"Склад!A133","v":0}]
[null,null,null,null,null,null,null,null,null,{"$f":"Склад!A134","v":0}]
[null,null,null,null,null,null,null,null,null,{"$f":"Склад!A135","v":0}]
[null,null,null,null,null,null,null,null,null,{"$f":"Склад!A136","v":0}]
[null,null,null,null,null,null,null,null,null,{"$f":"Склад!A137","v":0}]
[null,null,null,null,null,null,null,null,null,{"$f":"Склад!A138","v":0}]
[null,null,null,null,null,null,null,null,null,{"$f":"Склад!A139","v":0}]
[null,null,null,null,null,null,null,null,null,{"$f":"Склад!A140","v":0}]
[null,null,null,null,null,null,null,null,null,{"$f":"Склад!A141","v":0}]
[null,null,null,null,null,null,null,null,null,{"$f":"Склад!A142","v":0}]
[null,null,null,null,null,null,null,null,null,{"$f":"Склад!A143","v":0}]
[null,null,null,null,null,null,null,null,null,{"$f":"Склад!A144","v":0}]
[null,null,null,null,null,null,null,null,null,{"$f":"Склад!A145","v":0}]
[null,null,null,null,null,null,null,null,null,{"$f":"Склад!A146","v":0}]
[null,null,null,null,null,null,null,null,null,{"$f":"Склад!A147","v":0}]
[null,null,null,null,null,null,null,null,null,{"$f":"Склад!A148","v":0}]
[null,null,null,null,null,null,null,null,null,{"$f":"Склад!A149","v":0}]
[null,null,null,null,null,null,null,null,null,{"$f":"Склад!A150","v":0}]
[null,null,null,null,null,null,null,null,null,{"$f":"Склад!A151","v":0}]
[null,null,null,null,null,null,null,null,null,{"$f":"Склад!A152","v":0}]
[null,null,null,null,null,null,null,null,null,{"$f":"Склад!A153","v":0}]
[null,null,null,null,null,null,null,null,null,{"$f":"Склад!A154","v":0}]
[null,null,null,null,null,null,null,null,null,{"$f":"Склад!A155","v":0}]
[null,null,null,null,null,null,null,null,null,{"$f":"Склад!A156","v":0}]
[null,null,null,null,null,null,null,null,null,{"$f":"Склад!A157","v":0}]
[null,null,null,null,null,null,null,null,null,{"$f":"Склад!A158","v":0}]
[null,null,null,null,null,null,null,null,null,{"$f":"Склад!A159","v":0}]
[null,null,null,null,null,null,null,null,null,{"$f":"Склад!A160","v":0}]
[null,null,null,null,null,null,null,null,null,{"$f":"Склад!A161","v":0}]
[null,null,null,null,null,null,null,null,null,{"$f":"Склад!A162","v":0}]
[null,null,null,null,null,null,null,null,null,{"$f":"Склад!A163","v":0}]
[null,null,null,null,null,null,null,null,null,{"$f":"Склад!A164","v":0}]
[null,null,null,null,null,null,null,null,null,{"$f":"Склад!A165","v":0}]
[null,null,null,null,null,null,null,null,null,{"$f":"Склад!A166","v":0}]
[null,null,null,null,null,null,null,null,null,{"$f":"Склад!A167","v":0}]
[null,null,null,null,null,null,null,null,null,{"$f":"Склад!A168","v":0}]
[null,null,null,null,null,null,null,null,null,{"$f":"Склад!A169","v":0}]
[null,null,null,null,null,null,null,null,null,{"$f":"Склад!A170","v":0}]
[null,null,null,null,null,null,null,null,null,{"$f":"Склад!A171","v":0}]
[null,null,null,null,null,null,null,null,null,{"$f":"Склад!A172","v":0}]
[null,null,null,null,null,null,null,null,null,{"$f":"Склад!A173","v":0}]
[null,null,null,null,null,null,null,null,null,{"$f":"Склад!A174","v":0}]
[null,null,null,null,null,null,null,null,null,{"$f":"Склад!A175","v":0}]
[null,null,null,null,null,null,null,null,null,{"$f":"Склад!A176","v":0}]
[null,null,null,null,null,null,null,null,null,{"$f":"Склад!A177","v":0}]
[null,null,null,null,null,null,null,null,null,{"$f":"Склад!A178","v":0}]
[null,null,null,null,null,null,null,null,null,{"$f":"Склад!A179","v":0}]
[null,null,null,null,null,null,null,null,null,{"$f":"Склад!A180","v":0}]
[null,null,null,null,null,null,null,null,null,{"$f":"Склад!A181","v":0}]
[null,null,null,null,null,null,null,null,null,{"$f":"Склад!A182","v":0}]
[null,null,null,null,null,null,null,null,null,{"$f":"Склад!A183","v":0}]
[null,null,null,null,null,null,null,null,null,{"$f":"Склад!A184","v":0}]
[null,null,null,null,null,null,null,null,null,{"$f":"Склад!A185","v":0}]
[null,null,null,null,null,null,null,null,null,{"$f":"Склад!A186","v":0}]
[null,null,null,null,null,null,null,null,null,{"$f":"Склад!A187","v":0}]
[null,null,null,null,null,null,null,null,null,{"$f":"Склад!A188","v":0}]
[null,null,null,null,null,null,null,null,null,{"$f":"Склад!A189","v":0}]
[null,null,null,null,null,null,null,null,null,{"$f":"Склад!A190","v":0}]
[null,null,null,null,null,null,null,null,null,{"$f":"Склад!A191","v":0}]
[null,null,null,null,null,null,null,null,null,{"$f":"Склад!A192","v":0}]
[null,null,null,null,null,null,null,null,null,{"$f":"Склад!A193","v":0}]
[null,null,null,null,null,null,null,null,null,{"$f":"Склад!A194","v":0}]
[null,null,null,null,null,null,null,null,null,{"$f":"Склад!A195","v":0}]
[null,null,null,null,null,null,null,null,null,{"$f":"Склад!A196","v":0}]
[null,null,null,null,null,null,null,null,null,{"$f":"Склад!A197","v":0}]
[null,null,null,null,null,null,null,null,null,{"$f":"Склад!A198","v":0}]
[null,null,null,null,null,null,null,null,null,{"$f":"Склад!A199","v":0}]
[null,null,null,null,null,null,null,null,null,{"$f":"Склад!A200","v":0}]
[null,null,null,null,null,null,null,null,null,{"$f":"Склад!A201","v":0}]
[null,null,null,null,null,null,null,null,null,{"$f":"Склад!A202","v":0}]
[null,null,null,null,null,null,null,null,null,{"$f":"Склад!A203","v":0}]
[null,null,null,null,null,null,null,null,null,{"$f":"Склад!A204","v":0}]
[null,null,null,null,null,null,null,null,null,{"$f":"Склад!A205","v":0}]
[null,null,null,null,null,null,null,null,null,{"$f":"Склад!A206","v":0}]
[null,null,null,null,null,null,null,null,null,{"$f":"Склад!A207","v":0}]
[null,null,null,null,null,null,null,null,null,{"$f":"Склад!A208","v":0}]
[null,null,null,null,null,null,null,null,null,{"$f":"Склад!A209","v":0}]
[null,null,null,null,null,null,null,null,null,{"$f":"Склад!A210","v":0}]
[null,null,null,null,null,null,null,null,null,{"$f":"Склад!A211","v":0}]
[null,null,null,null,null,null,null,null,null,{"$f":"Склад!A212","v":0}]
[null,null,null,null,null,null,null,null,null,{"$f":"Склад!A213","v":0}]
[null,null,null,null,null,null,null,null,null,{"$f":"Склад!A214","v":0}]
[null,null,null,null,null,null,null,null,null,{"$f":"Склад!A215","v":0}]
[null,null,null,null,null,null,null,null,null,{"$f":"Склад!A216","v":0}]
[null,null,null,null,null,null,null,null,null,{"$f":"Склад!A217","v":0}]
[null,null,null,null,null,null,null,null,null,{"$f":"Склад!A218","v":0}]
[null,null,null,null,null,null,null,null,null,{"$f":"Склад!A219","v":0}]
[null,null,null,null,null,null,null,null,null,{"$f":"Склад!A220","v":0}]
[null,null,null,null,null,null,null,null,null,{"$f":"Склад!A221","v":0}]
[null,null,null,null,null,null,null,null,null,{"$f":"Склад!A222","v":0}]
[null,null,null,null,null,null,null,null,null,{"$f":"Склад!A223","v":0}]
[null,null,null,null,null,null,null,null,null,{"$f":"Склад!A224","v":0}]
[null,null,null,null,null,null,null,null,null,{"$f":"Склад!A225","v":0}]
[null,null,null,null,null,null,null,null,null,{"$f":"Склад!A226","v":0}]
[null,null,null,null,null,null,null,null,null,{"$f":"Склад!A227","v":0}]
[null,null,null,null,null,null,null,null,null,{"$f":"Склад!A228","v":0}]
[null,null,null,null,null,null,null,null,null,{"$f":"Склад!A229","v":0}]
[null,null,null,null,null,null,null,null,null,{"$f":"Склад!A230","v":0}]
[null,null,null,null,null,null,null,null,null,{"$f":"Склад!A231","v":0}]
[null,null,null,null,null,null,null,null,null,{"$f":"Склад!A232","v":0}]
[null,null,null,null,null,null,null,null,null,{"$f":"Склад!A233","v":0}]
[null,null,null,null,null,null,null,null,null,{"$f":"Склад!A234","v":0}]
[null,null,null,null,null,null,null,null,null,{"$f":"Склад!A235","v":0}]
[null,null,null,null,null,null,null,null,null,{"$f":"Склад!A236","v":0}]
[null,null,null,null,null,null,null,null,null,{"$f":"Склад!A237","v":0}]
[null,null,null,null,null,null,null,null,null,{"$f":"Склад!A238","v":0}]
[null,null,null,null,null,null,null,null,null,{"$f":"Склад!A239","v":0}]
[null,null,null,null,null,null,null,null,null,{"$f":"Склад!A240","v":0}]
[null,null,null,null,null,null,null,null,null,{"$f":"Склад!A241","v":0}]
[null,null,null,null,null,null,null,null,null,{"$f":"Склад!A242","v":0}]
[null,null,null,null,null,null,null,null,null,{"$f":"Склад!A243","v":0}]
[null,null,null,null,null,null,null,null,null,{"$f":"Склад!A244","v":0}]
[null,null,null,null,null,null,null,null,null,{"$f":"Склад!A245","v":0}]
[null,null,null,null,null,null,null,null,null,{"$f":"Склад!A246","v":0}]
[null,null,null,null,null,null,null,null,null,{"$f":"Склад!A247","v":0}]
[null,null,null,null,null,null,null,null,null,{"$f":"Склад!A248","v":0}]
[null,null,null,null,null,null,null,null,null,{"$f":"Склад!A249","v":0}]
[null,null,null,null,null,null,null,null,null,{"$f":"Склад!A250","v":0}]
[null,null,null,null,null,null,null,null,null,{"$f":"Склад!A251","v":0}]
[null,null,null,null,null,null,null,null,null,{"$f":"Склад!A252","v":0}]
[null,null,null,null,null,null,null,null,null,{"$f":"Склад!A253","v":0}]
[null,null,null,null,null,null,null,null,null,{"$f":"Склад!A254","v":0}]
[null,null,null,null,null,null,null,null,null,{"$f":"Склад!A255","v":0}]
[null,null,null,null,null,null,null,null,null,{"$f":"Склад!A256","v":0}]
[null,null,null,null,null,null,null,null,null,{"$f":"Склад!A257","v":0}]
[null,null,null,null,null,null,null,null,null,{"$f":"Склад!A258","v":0}]
[null,null,null,null,null,null,null,null,null,{"$f":"Склад!A259","v":0}]
[null,null,null,null,null,null,null,null,null,{"$f":"Склад!A260","v":0}]
[null,null,null,null,null,null,null,null,null,{"$f":"Склад!A261","v":0}]
[null,null,null,null,null,null,null,null,null,{"$f":"Склад!A262","v":0}]
[null,null,null,null,null,null,null,null,null,{"$f":"Склад!A263","v":0}]
[null,null,null,null,null,null,null,null,null,{"$f":"Склад!A264","v":0}]
[null,null,null,null,null,null,null,null,null,{"$f":"Склад!A265","v":0}]
[null,null,null,null,null,null,null,null,null,{"$f":"Склад!A266","v":0}]
[null,null,null,null,null,null,null,null,null,{"$f":"Склад!A267","v":0}]
[null,null,null,null,null,null,null,null,null,{"$f":"Склад!A268","v":0}]
[null,null,null,null,null,null,null,null,null,{"$f":"Склад!A269","v":0}]
[null,null,null,null,null,null,null,null,null,{"$f":"Склад!A270","v":0}]
[null,null,null,null,null,null,null,null,null,{"$f":"Склад!A271","v":0}]
[null,null,null,null,null,null,null,null,null,{"$f":"Склад!A272","v":0}]
[null,null,null,null,null,null,null,null,null,{"$f":"Склад!A273","v":0}]
[null,null,null,null,null,null,null,null,null,{"$f":"Склад!A274","v":0}]
[null,null,null,null,null,null,null,null,null,{"$f":"Склад!A275","v":0}]
[null,null,null,null,null,null,null,null,null,{"$f":"Склад!A276","v":0}]
[null,null,null,null,null,null,null,null,null,{"$f":"Склад!A277","v":0}]
[null,null,null,null,null,null,null,null,null,{"$f":"Склад!A278","v":0}]
[null,null,null,null,null,null,null,null,null,{"$f":"Склад!A279","v":0}]
[null,null,null,null,null,null,null,null,null,{"$f":"Склад!A280","v":0}]
[null,null,null,null,null,null,null,null,null,{"$f":"Склад!A281","v":0}]
[null,null,null,null,null,null,null,null,null,{"$f":"Склад!A282","v":0}]
[null,null,null,null,null,null,null,null,null,{"$f":"Склад!A283","v":0}]
[null,null,null,null,null,null,null,null,null,{"$f":"Склад!A284","v":0}]
[null,null,null,null,null,null,null,null,null,{"$f":"Склад!A285","v":0}]
[null,null,null,null,null,null,null,null,null,{"$f":"Склад!A286","v":0}]
[null,null,null,null,null,null,null,null,null,{"$f":"Склад!A287","v":0}]
[null,null,null,null,null,null,null,null,null,{"$f":"Склад!A288","v":0}]
[null,null,null,null,null,null,null,null,null,{"$f":"Склад!A289","v":0}]
[null,null,null,null,null,null,null,null,null,{"$f":"Склад!A290","v":0}]
[null,null,null,null,null,null,null,null,null,{"$f":"Склад!A291","v":0}]
[null,null,null,null,null,null,null,null,null,{"$f":"Склад!A292","v":0}]
[null,null,null,null,null,null,null,null,null,{"$f":"Склад!A293","v":0}]
[null,null,null,null,null,null,null,null,null,{"$f":"Склад!A294","v":0}]
[null,null,null,null,null,null,null,null,null,{"$f":"Склад!A295","v":0}]
[null,null,null,null,null,null,null,null,null,{"$f":"Склад!A296","v":0}]
[null,null,null,null,null,null,null,null,null,{"$f":"Склад!A297","v":0}]
[null,null,null,null,null,null,null,null,null,{"$f":"Склад!A298","v":0}]
[null,null,null,null,null,null,null,null,null,{"$f":"Склад!A299","v":0}]
[null,null,null,null,null,null,null,null,null,{"$f":"Склад!A300","v":0}]
[null,null,null,null,null,null,null,null,null,{"$f":"Склад!A301","v":0}]
[null,null,null,null,null,null,null,null,null,{"$f":"Склад!A302","v":0}]
[null,null,null,null,null,null,null,null,null,{"$f":"Склад!A303","v":0}]
[null,null,null,null,null,null,null,null,null,{"$f":"Склад!A304","v":0}]
[null,null,null,null,null,null,null,null,null,{"$f":"Склад!A305","v":0}]
[null,null,null,null,null,null,null,null,null,{"$f":"Склад!A306","v":0}]
[null,null,null,null,null,null,null,null,null,{"$f":"Склад!A307","v":0}]
[null,null,null,null,null,null,null,null,null,{"$f":"Склад!A308","v":0}]
[null,null,null,null,null,null,null,null,null,{"$f":"Склад!A309","v":0}]
[null,null,null,null,null,null,null,null,null,{"$f":"Склад!A310","v":0}]
[null,null,null,null,null,null,null,null,null,{"$f":"Склад!A311","v":0}]
[null,null,null,null,null,null,null,null,null,{"$f":"Склад!A312","v":0}]
[null,null,null,null,null,null,null,null,null,{"$f":"Склад!A313","v":0}]
[null,null,null,null,null,null,null,null,null,{"$f":"Склад!A314","v":0}]
[null,null,null,null,null,null,null,null,null,{"$f":"Склад!A315","v":0}]
[null,null,null,null,null,null,null,null,null,{"$f":"Склад!A316","v":0}]
[null,null,null,null,null,null,null,null,null,{"$f":"Склад!A317","v":0}]
[null,null,null,null,null,null,null,null,null,{"$f":"Склад!A318","v":0}]
[null,null,null,null,null,null,null,null,null,{"$f":"Склад!A319","v":0}]
[null,null,null,null,null,null,null,null,null,{"$f":"Склад!A320","v":0}]
[null,null,null,null,null,null,null,null,null,{"$f":"Склад!A321","v":0}]
[null,null,null,null,null,null,null,null,null,{"$f":"Склад!A322","v":0}]
[null,null,null,null,null,null,null,null,null,{"$f":"Склад!A323","v":0}]
[null,null,null,null,null,null,null,null,null,{"$f":"Склад!A324","v":0}]
[null,null,null,null,null,null,null,null,null,{"$f":"Склад!A325","v":0}]
[null,null,null,null,null,null,null,null,null,{"$f":"Склад!A326","v":0}]
[null,null,null,null,null,null,null,null,null,{"$f":"Склад!A327","v":0}]
[null,null,null,null,null,null,null,null,null,{"$f":"Склад!A328","v":0}]
[null,null,null,null,null,null,null,null,null,{"$f":"Склад!A329","v":0}]
[null,null,null,null,null,null,null,null,null,{"$f":"Склад!A330","v":0}]
[null,null,null,null,null,null,null,null,null,{"$f":"Склад!A331","v":0}]
[null,null,null,null,null,null,null,null,null,{"$f":"Склад!A332","v":0}]
[null,null,null,null,null,null,null,null,null,{"$f":"Склад!A333","v":0}]
[null,null,null,null,null,null,null,null,null,{"$f":"Склад!A334","v":0}]
[null,null,null,null,null,null,null,null,null,{"$f":"Склад!A335","v":0}]
[null,null,null,null,null,null,null,null,null,{"$f":"Склад!A336","v":0}]
[null,null,null,null,null,null,null,null,null,{"$f":"Склад!A337","v":0}]
[null,null,null,null,null,null,null,null,null,{"$f":"Склад!A338","v":0}]
[null,null,null,null,null,null,null,null,null,{"$f":"Склад!A339","v":0}]
[null,null,null,null,null,null,null,null,null,{"$f":"Склад!A340","v":0}]
[null,null,null,null,null,null,null,null,null,{"$f":"Склад!A341","v":0}]
[null,null,null,null,null,null,null,null,null,{"$f":"Склад!A342","v":0}]
[null,null,null,null,null,null,null,null,null,{"$f":"Склад!A343","v":0}]
[null,null,null,null,null,null,null,null,null,{"$f":"Склад!A344","v":0}]
[null,null,null,null,null,null,null,null,null,{"$f":"Склад!A345","v":0}]
[null,null,null,null,null,null,null,null,null,{"$f":"Склад!A346","v":0}]
[null,null,null,null,null,null,null,null,null,{"$f":"Склад!A347","v":0}]
[null,null,null,null,null,null,null,null,null,{"$f":"Склад!A348","v":0}]
[null,null,null,null,null,null,null,null,null,{"$f":"Склад!A349","v":0}]
[null,null,null,null,null,null,null,null,null,{"$f":"Склад!A350","v":0}]
[null,null,null,null,null,null,null,null,null,{"$f":"Склад!A351","v":0}]
[null,null,null,null,null,null,null,null,null,{"$f":"Склад!A352","v":0}]
[null,null,null,null,null,null,null,null,null,{"$f":"Склад!A353","v":0}]
[null,null,null,null,null,null,null,null,null,{"$f":"Склад!A354","v":0}]
[null,null,null,null,null,null,null,null,null,{"$f":"Склад!A355","v":0}]
[null,null,null,null,null,null,null,null,null,{"$f":"Склад!A356","v":0}]
[null,null,null,null,null,null,null,null,null,{"$f":"Склад!A357","v":0}]
[null,null,null,null,null,null,null,null,null,{"$f":"Склад!A358","v":0}]
[null,null,null,null,null,null,null,null,null,{"$f":"Склад!A359","v":0}]
[null,null,null,null,null,null,null,null,null,{"$f":"Склад!A360","v":0}]
[null,null,null,null,null,null,null,null,null,{"$f":"Склад!A361","v":0}]
[null,null,null,null,null,null,null,null,null,{"$f":"Склад!A362","v":0}]
[null,null,null,null,null,null,null,null,null,{"$f":"Склад!A363","v":0}]
[null,null,null,null,null,null,null,null,null,{"$f":"Склад!A364","v":0}]
[null,null,null,null,null,null,null,null,null,{"$f":"Склад!A365","v":0}]
[null,null,null,null,null,null,null,null,null,{"$f":"Склад!A366","v":0}]
[null,null,null,null,null,null,null,null,null,{"$f":"Склад!A367","v":0}]
[null,null,null,null,null,null,null,null,null,{"$f":"Склад!A368","v":0}]
[null,null,null,null,null,null,null,null,null,{"$f":"Склад!A369","v":0}]
[null,null,null,null,null,null,null,null,null,{"$f":"Склад!A370","v":0}]
[null,null,null,null,null,null,null,null,null,{"$f":"Склад!A371","v":0}]
[null,null,null,null,null,null,null,null,null,{"$f":"Склад!A372","v":0}]
[null,null,null,null,null,null,null,null,null,{"$f":"Склад!A373","v":0}]
[null,null,null,null,null,null,null,null,null,{"$f":"Склад!A374","v":0}]
[null,null,null,null,null,null,null,null,null,{"$f":"Склад!A375","v":0}]
[null,null,null,null,null,null,null,null,null,{"$f":"Склад!A376","v":0}]
[null,null,null,null,null,null,null,null,null,{"$f":"Склад!A377","v":0}]
[null,null,null,null,null,null,null,null,null,{"$f":"Склад!A378","v":0}]
[null,null,null,null,null,null,null,null,null,{"$f":"Склад!A379","v":0}]
[null,null,null,null,null,null,null,null,null,{"$f":"Склад!A380","v":0}]
[null,null,null,null,null,null,null,null,null,{"$f":"Склад!A381","v":0}]
[null,null,null,null,null,null,null,null,null,{"$f":"Склад!A382","v":0}]
[null,null,null,null,null,null,null,null,null,{"$f":"Склад!A383","v":0}]
[null,null,null,null,null,null,null,null,null,{"$f":"Склад!A384","v":0}]
[null,null,null,null,null,null,null,null,null,{"$f":"Склад!A385","v":0}]
[null,null,null,null,null,null,null,null,null,{"$f":"Склад!A386","v":0}]
[null,null,null,null,null,null,null,null,null,{"$f":"Склад!A387","v":0}]
[null,null,null,null,null,null,null,null,null,{"$f":"Склад!A388","v":0}]
[null,null,null,null,null,null,null,null,null,{"$f":"Склад!A389","v":0}]
[null,null,null,null,null,null,null,null,null,{"$f":"Склад!A390","v":0}]
[null,null,null,null,null,null,null,null,null,{"$f":"Склад!A391","v":0}]
[null,null,null,null,null,null,null,null,null,{"$f":"Склад!A392","v":0}]
[null,null,null,null,null,null,null,null,null,{"$f":"Склад!A393","v":0}]
[null,null,null,null,null,null,null,null,null,{"$f":"Склад!A394","v":0}]
[null,null,null,null,null,null,null,null,null,{"$f":"Склад!A395","v":0}]
[null,null,null,null,null,null,null,null,null,{"$f":"Склад!A396","v":0}]
[null,null,null,null,null,null,null,null,null,{"$f":"Склад!A397","v":0}]
[null,null,null,null,null,null,null,null,null,{"$f":"Склад!A398","v":0}]
[null,null,null,null,null,null,null,null,null,{"$f":"Склад!A399","v":0}]
[null,null,null,null,null,null,null,null,null,{"$f":"Склад!A400","v":0}]
[null,null,null,null,null,null,null,null,null,{"$f":"Склад!A401","v":0}]
[null,null,null,null,null,null,null,null,null,{"$f":"Склад!A402","v":0}]
[null,null,null,null,null,null,null,null,null,{"$f":"Склад!A403","v":0}]
[null,null,null,null,null,null,null,null,null,{"$f":"Склад!A404","v":0}]
[null,null,null,null,null,null,null,null,null,{"$f":"Склад!A405","v":0}]
[null,null,null,null,null,null,null,null,null,{"$f":"Склад!A406","v":0}]
[null,null,null,null,null,null,null,null,null,{"$f":"Склад!A407","v":0}]
[null,null,null,null,null,null,null,null,null,{"$f":"Склад!A408","v":0}]
[null,null,null,null,null,null,null,null,null,{"$f":"Склад!A409","v":0}]
[null,null,null,null,null,null,null,null,null,{"$f":"Склад!A410","v":0}]
[null,null,null,null,null,null,null,null,null,{"$f":"Склад!A411","v":0}]
[null,null,null,null,null,null,null,null,null,{"$f":"Склад!A412","v":0}]
[null,null,null,null,null,null,null,null,null,{"$f":"Склад!A413","v":0}]
[null,null,null,null,null,null,null,null,null,{"$f":"Склад!A414","v":0}]
[null,null,null,null,null,null,null,null,null,{"$f":"Склад!A415","v":0}]
[null,null,null,null,null,null,null,null,null,{"$f":"Склад!A416","v":0}]
[null,null,null,null,null,null,null,null,null,{"$f":"Склад!A417","v":0}]
[null,null,null,null,null,null,null,null,null,{"$f":"Склад!A418","v":0}]
[null,null,null,null,null,null,null,null,null,{"$f":"Склад!A419","v":0}]
[null,null,null,null,null,null,null,null,null,{"$f":"Склад!A420","v":0}]
[null,null,null,null,null,null,null,null,null,{"$f":"Склад!A421","v":0}]
[null,null,null,null,null,null,null,null,null,{"$f":"Склад!A422","v":0}]
[null,null,null,null,null,null,null,null,null,{"$f":"Склад!A423","v":0}]
[null,null,null,null,null,null,null,null,null,{"$f":"Склад!A424","v":0}]
[null,null,null,null,null,null,null,null,null,{"$f":"Склад!A425","v":0}]

{"sheet":"Закупка","index":1,"n_rows":500,"n_cols":10,"rows_kept":500,"cut":false,"hidden":false,"merged":[[8,1,8,3],[1,6,1,7],[4,1,4,3],[5,1,5,3],[6,1,6,3],[7,1,7,3],[20,1,20,3],[9,1,9,3],[10,1,10,3],[11,1,11,3],[12,1,12,3],[13,1,13,3],[14,1,14,3],[15,1,15,3],[16,1,16,3],[17,1,17,3],[18,1,18,3],[19,1,19,3],[21,1,21,3],[22,1,22,3],[23,1,23,3],[25,4,25,5],[25,6,25,7]]}
[]
[null,null,null,null,null,"ДАТА"]
[]
[]
[null,"Зап. Части",null,null,"Кол-во","Цена","Сумма"]
[null,null,null,null,null,{"$f":"VLOOKUP(B6,Склад!A2:D500,4,FALSE)","v":{"$error":"#N/A"}},{"$f":"IF(ISERROR(F6),0,E6*F6)","v":0},null,null,{"$f":"Склад!A2","v":"Гвозди"}]
[null,null,null,null,null,{"$f":"VLOOKUP(B7,Склад!A3:D501,4,FALSE)","v":{"$error":"#N/A"}},{"$f":"IF(ISERROR(F7),0,E7*F7)","v":0},null,null,{"$f":"Склад!A3","v":"Какашки"}]
[null,null,null,null,null,{"$f":"VLOOKUP(B8,Склад!A4:D502,4,FALSE)","v":{"$error":"#N/A"}},0,null,null,{"$f":"Склад!A4","v":"Компрессор"}]
[null,null,null,null,null,{"$f":"VLOOKUP(B9,Склад!A5:D503,4,FALSE)","v":{"$error":"#N/A"}},0,null,null,{"$f":"Склад!A5","v":"Масляный фильтр"}]
[null,null,null,null,null,{"$f":"VLOOKUP(B10,Склад!A6:D504,4,FALSE)","v":{"$error":"#N/A"}},0,null,null,{"$f":"Склад!A6","v":"Миномет"}]
[null,null,null,null,null,{"$f":"VLOOKUP(B11,Склад!A7:D505,4,FALSE)","v":{"$error":"#N/A"}},0,null,null,{"$f":"Склад!A7","v":"Припой"}]
[null,null,null,null,null,{"$f":"VLOOKUP(B12,Склад!A8:D506,4,FALSE)","v":{"$error":"#N/A"}},0,null,null,{"$f":"Склад!A8","v":"Терморегулятор"}]
[null,null,null,null,null,{"$f":"VLOOKUP(B13,Склад!A9:D507,4,FALSE)","v":{"$error":"#N/A"}},0,null,null,{"$f":"Склад!A9","v":"Фантики"}]
[null,null,null,null,null,{"$f":"VLOOKUP(B14,Склад!A10:D508,4,FALSE)","v":{"$error":"#N/A"}},0,null,null,{"$f":"Склад!A10","v":"Фреон"}]
[null,null,null,null,null,{"$f":"VLOOKUP(B15,Склад!A11:D509,4,FALSE)","v":{"$error":"#N/A"}},0,null,null,{"$f":"Склад!A11","v":0}]
[null,null,null,null,null,{"$f":"VLOOKUP(B16,Склад!A12:D510,4,FALSE)","v":{"$error":"#N/A"}},0,null,null,{"$f":"Склад!A12","v":0}]
[null,null,null,null,null,{"$f":"VLOOKUP(B17,Склад!A13:D511,4,FALSE)","v":{"$error":"#N/A"}},0,null,null,{"$f":"Склад!A13","v":0}]
[null,null,null,null,null,{"$f":"VLOOKUP(B18,Склад!A14:D512,4,FALSE)","v":{"$error":"#N/A"}},0,null,null,{"$f":"Склад!A14","v":0}]
[null,null,null,null,null,{"$f":"VLOOKUP(B19,Склад!A15:D513,4,FALSE)","v":{"$error":"#N/A"}},0,null,null,{"$f":"Склад!A15","v":0}]
[null,null,null,null,null,{"$f":"VLOOKUP(B20,Склад!A16:D514,4,FALSE)","v":{"$error":"#N/A"}},0,null,null,{"$f":"Склад!A16","v":0}]
[null,null,null,null,null,{"$f":"VLOOKUP(B21,Склад!A17:D515,4,FALSE)","v":{"$error":"#N/A"}},0,null,null,{"$f":"Склад!A17","v":0}]
[null,null,null,null,null,{"$f":"VLOOKUP(B22,Склад!A18:D516,4,FALSE)","v":{"$error":"#N/A"}},0,null,null,{"$f":"Склад!A18","v":0}]
[null,null,null,null,null,{"$f":"VLOOKUP(B23,Склад!A19:D517,4,FALSE)","v":{"$error":"#N/A"}},0,null,null,{"$f":"Склад!A19","v":0}]
[null,null,null,null,null,{"$f":"VLOOKUP(B24,Склад!A20:D518,4,FALSE)","v":{"$error":"#N/A"}},0,null,null,{"$f":"Склад!A20","v":0}]
[null,null,null,null,null,null,null,null,null,{"$f":"Склад!A21","v":0}]
[null,null,null,null,"ИТОГО",null,{"$f":"SUM(G6:G24)","v":0},null,null,{"$f":"Склад!A22","v":0}]
[null,null,null,null,null,null,null,null,null,{"$f":"Склад!A23","v":0}]
[null,null,null,null,null,null,null,null,null,{"$f":"Склад!A24","v":0}]
[null,null,null,null,null,null,null,null,null,{"$f":"Склад!A25","v":0}]
[null,null,null,null,null,null,null,null,null,{"$f":"Склад!A26","v":0}]
[null,null,null,null,null,null,null,null,null,{"$f":"Склад!A27","v":0}]
[null,null,null,null,null,null,null,null,null,{"$f":"Склад!A28","v":0}]
[null,null,null,null,null,null,null,null,null,{"$f":"Склад!A29","v":0}]
[null,null,null,null,null,null,null,null,null,{"$f":"Склад!A30","v":0}]
[null,null,null,null,null,null,null,null,null,{"$f":"Склад!A31","v":0}]
[null,null,null,null,null,null,null,null,null,{"$f":"Склад!A32","v":0}]
[null,null,null,null,null,null,null,null,null,{"$f":"Склад!A33","v":0}]
[null,null,null,null,null,null,null,null,null,{"$f":"Склад!A34","v":0}]
[null,null,null,null,null,null,null,null,null,{"$f":"Склад!A35","v":0}]
[null,null,null,null,null,null,null,null,null,{"$f":"Склад!A36","v":0}]
[null,null,null,null,null,null,null,null,null,{"$f":"Склад!A37","v":0}]
[null,null,null,null,null,null,null,null,null,{"$f":"Склад!A38","v":0}]
[null,null,null,null,null,null,null,null,null,{"$f":"Склад!A39","v":0}]
[null,null,null,null,null,null,null,null,null,{"$f":"Склад!A40","v":0}]
[null,null,null,null,null,null,null,null,null,{"$f":"Склад!A41","v":0}]
[null,null,null,null,null,null,null,null,null,{"$f":"Склад!A42","v":0}]
[null,null,null,null,null,null,null,null,null,{"$f":"Склад!A43","v":0}]
[null,null,null,null,null,null,null,null,null,{"$f":"Склад!A44","v":0}]
[null,null,null,null,null,null,null,null,null,{"$f":"Склад!A45","v":0}]
[null,null,null,null,null,null,null,null,null,{"$f":"Склад!A46","v":0}]
[null,null,null,null,null,null,null,null,null,{"$f":"Склад!A47","v":0}]
[null,null,null,null,null,null,null,null,null,{"$f":"Склад!A48","v":0}]
[null,null,null,null,null,null,null,null,null,{"$f":"Склад!A49","v":0}]
[null,null,null,null,null,null,null,null,null,{"$f":"Склад!A50","v":0}]
[null,null,null,null,null,null,null,null,null,{"$f":"Склад!A51","v":0}]
[null,null,null,null,null,null,null,null,null,{"$f":"Склад!A52","v":0}]
[null,null,null,null,null,null,null,null,null,{"$f":"Склад!A53","v":0}]
[null,null,null,null,null,null,null,null,null,{"$f":"Склад!A54","v":0}]
[null,null,null,null,null,null,null,null,null,{"$f":"Склад!A55","v":0}]
[null,null,null,null,null,null,null,null,null,{"$f":"Склад!A56","v":0}]
[null,null,null,null,null,null,null,null,null,{"$f":"Склад!A57","v":0}]
[null,null,null,null,null,null,null,null,null,{"$f":"Склад!A58","v":0}]
[null,null,null,null,null,null,null,null,null,{"$f":"Склад!A59","v":0}]
[null,null,null,null,null,null,null,null,null,{"$f":"Склад!A60","v":0}]
[null,null,null,null,null,null,null,null,null,{"$f":"Склад!A61","v":0}]
[null,null,null,null,null,null,null,null,null,{"$f":"Склад!A62","v":0}]
[null,null,null,null,null,null,null,null,null,{"$f":"Склад!A63","v":0}]
[null,null,null,null,null,null,null,null,null,{"$f":"Склад!A64","v":0}]
[null,null,null,null,null,null,null,null,null,{"$f":"Склад!A65","v":0}]
[null,null,null,null,null,null,null,null,null,{"$f":"Склад!A66","v":0}]
[null,null,null,null,null,null,null,null,null,{"$f":"Склад!A67","v":0}]
[null,null,null,null,null,null,null,null,null,{"$f":"Склад!A68","v":0}]
[null,null,null,null,null,null,null,null,null,{"$f":"Склад!A69","v":0}]
[null,null,null,null,null,null,null,null,null,{"$f":"Склад!A70","v":0}]
[null,null,null,null,null,null,null,null,null,{"$f":"Склад!A71","v":0}]
[null,null,null,null,null,null,null,null,null,{"$f":"Склад!A72","v":0}]
[null,null,null,null,null,null,null,null,null,{"$f":"Склад!A73","v":0}]
[null,null,null,null,null,null,null,null,null,{"$f":"Склад!A74","v":0}]
[null,null,null,null,null,null,null,null,null,{"$f":"Склад!A75","v":0}]
[null,null,null,null,null,null,null,null,null,{"$f":"Склад!A76","v":0}]
[null,null,null,null,null,null,null,null,null,{"$f":"Склад!A77","v":0}]
[null,null,null,null,null,null,null,null,null,{"$f":"Склад!A78","v":0}]
[null,null,null,null,null,null,null,null,null,{"$f":"Склад!A79","v":0}]
[null,null,null,null,null,null,null,null,null,{"$f":"Склад!A80","v":0}]
[null,null,null,null,null,null,null,null,null,{"$f":"Склад!A81","v":0}]
[null,null,null,null,null,null,null,null,null,{"$f":"Склад!A82","v":0}]
[null,null,null,null,null,null,null,null,null,{"$f":"Склад!A83","v":0}]
[null,null,null,null,null,null,null,null,null,{"$f":"Склад!A84","v":0}]
[null,null,null,null,null,null,null,null,null,{"$f":"Склад!A85","v":0}]
[null,null,null,null,null,null,null,null,null,{"$f":"Склад!A86","v":0}]
[null,null,null,null,null,null,null,null,null,{"$f":"Склад!A87","v":0}]
[null,null,null,null,null,null,null,null,null,{"$f":"Склад!A88","v":0}]
[null,null,null,null,null,null,null,null,null,{"$f":"Склад!A89","v":0}]
[null,null,null,null,null,null,null,null,null,{"$f":"Склад!A90","v":0}]
[null,null,null,null,null,null,null,null,null,{"$f":"Склад!A91","v":0}]
[null,null,null,null,null,null,null,null,null,{"$f":"Склад!A92","v":0}]
[null,null,null,null,null,null,null,null,null,{"$f":"Склад!A93","v":0}]
[null,null,null,null,null,null,null,null,null,{"$f":"Склад!A94","v":0}]
[null,null,null,null,null,null,null,null,null,{"$f":"Склад!A95","v":0}]
[null,null,null,null,null,null,null,null,null,{"$f":"Склад!A96","v":0}]
[null,null,null,null,null,null,null,null,null,{"$f":"Склад!A97","v":0}]
[null,null,null,null,null,null,null,null,null,{"$f":"Склад!A98","v":0}]
[null,null,null,null,null,null,null,null,null,{"$f":"Склад!A99","v":0}]
[null,null,null,null,null,null,null,null,null,{"$f":"Склад!A100","v":0}]
[null,null,null,null,null,null,null,null,null,{"$f":"Склад!A101","v":0}]
[null,null,null,null,null,null,null,null,null,{"$f":"Склад!A102","v":0}]
[null,null,null,null,null,null,null,null,null,{"$f":"Склад!A103","v":0}]
[null,null,null,null,null,null,null,null,null,{"$f":"Склад!A104","v":0}]
[null,null,null,null,null,null,null,null,null,{"$f":"Склад!A105","v":0}]
[null,null,null,null,null,null,null,null,null,{"$f":"Склад!A106","v":0}]
[null,null,null,null,null,null,null,null,null,{"$f":"Склад!A107","v":0}]
[null,null,null,null,null,null,null,null,null,{"$f":"Склад!A108","v":0}]
[null,null,null,null,null,null,null,null,null,{"$f":"Склад!A109","v":0}]
[null,null,null,null,null,null,null,null,null,{"$f":"Склад!A110","v":0}]
[null,null,null,null,null,null,null,null,null,{"$f":"Склад!A111","v":0}]
[null,null,null,null,null,null,null,null,null,{"$f":"Склад!A112","v":0}]
[null,null,null,null,null,null,null,null,null,{"$f":"Склад!A113","v":0}]
[null,null,null,null,null,null,null,null,null,{"$f":"Склад!A114","v":0}]
[null,null,null,null,null,null,null,null,null,{"$f":"Склад!A115","v":0}]
[null,null,null,null,null,null,null,null,null,{"$f":"Склад!A116","v":0}]
[null,null,null,null,null,null,null,null,null,{"$f":"Склад!A117","v":0}]
[null,null,null,null,null,null,null,null,null,{"$f":"Склад!A118","v":0}]
[null,null,null,null,null,null,null,null,null,{"$f":"Склад!A119","v":0}]
[null,null,null,null,null,null,null,null,null,{"$f":"Склад!A120","v":0}]
[null,null,null,null,null,null,null,null,null,{"$f":"Склад!A121","v":0}]
[null,null,null,null,null,null,null,null,null,{"$f":"Склад!A122","v":0}]
[null,null,null,null,null,null,null,null,null,{"$f":"Склад!A123","v":0}]
[null,null,null,null,null,null,null,null,null,{"$f":"Склад!A124","v":0}]
[null,null,null,null,null,null,null,null,null,{"$f":"Склад!A125","v":0}]
[null,null,null,null,null,null,null,null,null,{"$f":"Склад!A126","v":0}]
[null,null,null,null,null,null,null,null,null,{"$f":"Склад!A127","v":0}]
[null,null,null,null,null,null,null,null,null,{"$f":"Склад!A128","v":0}]
[null,null,null,null,null,null,null,null,null,{"$f":"Склад!A129","v":0}]
[null,null,null,null,null,null,null,null,null,{"$f":"Склад!A130","v":0}]
[null,null,null,null,null,null,null,null,null,{"$f":"Склад!A131","v":0}]
[null,null,null,null,null,null,null,null,null,{"$f":"Склад!A132","v":0}]
[null,null,null,null,null,null,null,null,null,{"$f":"Склад!A133","v":0}]
[null,null,null,null,null,null,null,null,null,{"$f":"Склад!A134","v":0}]
[null,null,null,null,null,null,null,null,null,{"$f":"Склад!A135","v":0}]
[null,null,null,null,null,null,null,null,null,{"$f":"Склад!A136","v":0}]
[null,null,null,null,null,null,null,null,null,{"$f":"Склад!A137","v":0}]
[null,null,null,null,null,null,null,null,null,{"$f":"Склад!A138","v":0}]
[null,null,null,null,null,null,null,null,null,{"$f":"Склад!A139","v":0}]
[null,null,null,null,null,null,null,null,null,{"$f":"Склад!A140","v":0}]
[null,null,null,null,null,null,null,null,null,{"$f":"Склад!A141","v":0}]
[null,null,null,null,null,null,null,null,null,{"$f":"Склад!A142","v":0}]
[null,null,null,null,null,null,null,null,null,{"$f":"Склад!A143","v":0}]
[null,null,null,null,null,null,null,null,null,{"$f":"Склад!A144","v":0}]
[null,null,null,null,null,null,null,null,null,{"$f":"Склад!A145","v":0}]
[null,null,null,null,null,null,null,null,null,{"$f":"Склад!A146","v":0}]
[null,null,null,null,null,null,null,null,null,{"$f":"Склад!A147","v":0}]
[null,null,null,null,null,null,null,null,null,{"$f":"Склад!A148","v":0}]
[null,null,null,null,null,null,null,null,null,{"$f":"Склад!A149","v":0}]
[null,null,null,null,null,null,null,null,null,{"$f":"Склад!A150","v":0}]
[null,null,null,null,null,null,null,null,null,{"$f":"Склад!A151","v":0}]
[null,null,null,null,null,null,null,null,null,{"$f":"Склад!A152","v":0}]
[null,null,null,null,null,null,null,null,null,{"$f":"Склад!A153","v":0}]
[null,null,null,null,null,null,null,null,null,{"$f":"Склад!A154","v":0}]
[null,null,null,null,null,null,null,null,null,{"$f":"Склад!A155","v":0}]
[null,null,null,null,null,null,null,null,null,{"$f":"Склад!A156","v":0}]
[null,null,null,null,null,null,null,null,null,{"$f":"Склад!A157","v":0}]
[null,null,null,null,null,null,null,null,null,{"$f":"Склад!A158","v":0}]
[null,null,null,null,null,null,null,null,null,{"$f":"Склад!A159","v":0}]
[null,null,null,null,null,null,null,null,null,{"$f":"Склад!A160","v":0}]
[null,null,null,null,null,null,null,null,null,{"$f":"Склад!A161","v":0}]
[null,null,null,null,null,null,null,null,null,{"$f":"Склад!A162","v":0}]
[null,null,null,null,null,null,null,null,null,{"$f":"Склад!A163","v":0}]
[null,null,null,null,null,null,null,null,null,{"$f":"Склад!A164","v":0}]
[null,null,null,null,null,null,null,null,null,{"$f":"Склад!A165","v":0}]
[null,null,null,null,null,null,null,null,null,{"$f":"Склад!A166","v":0}]
[null,null,null,null,null,null,null,null,null,{"$f":"Склад!A167","v":0}]
[null,null,null,null,null,null,null,null,null,{"$f":"Склад!A168","v":0}]
[null,null,null,null,null,null,null,null,null,{"$f":"Склад!A169","v":0}]
[null,null,null,null,null,null,null,null,null,{"$f":"Склад!A170","v":0}]
[null,null,null,null,null,null,null,null,null,{"$f":"Склад!A171","v":0}]
[null,null,null,null,null,null,null,null,null,{"$f":"Склад!A172","v":0}]
[null,null,null,null,null,null,null,null,null,{"$f":"Склад!A173","v":0}]
[null,null,null,null,null,null,null,null,null,{"$f":"Склад!A174","v":0}]
[null,null,null,null,null,null,null,null,null,{"$f":"Склад!A175","v":0}]
[null,null,null,null,null,null,null,null,null,{"$f":"Склад!A176","v":0}]
[null,null,null,null,null,null,null,null,null,{"$f":"Склад!A177","v":0}]
[null,null,null,null,null,null,null,null,null,{"$f":"Склад!A178","v":0}]
[null,null,null,null,null,null,null,null,null,{"$f":"Склад!A179","v":0}]
[null,null,null,null,null,null,null,null,null,{"$f":"Склад!A180","v":0}]
[null,null,null,null,null,null,null,null,null,{"$f":"Склад!A181","v":0}]
[null,null,null,null,null,null,null,null,null,{"$f":"Склад!A182","v":0}]
[null,null,null,null,null,null,null,null,null,{"$f":"Склад!A183","v":0}]
[null,null,null,null,null,null,null,null,null,{"$f":"Склад!A184","v":0}]
[null,null,null,null,null,null,null,null,null,{"$f":"Склад!A185","v":0}]
[null,null,null,null,null,null,null,null,null,{"$f":"Склад!A186","v":0}]
[null,null,null,null,null,null,null,null,null,{"$f":"Склад!A187","v":0}]
[null,null,null,null,null,null,null,null,null,{"$f":"Склад!A188","v":0}]
[null,null,null,null,null,null,null,null,null,{"$f":"Склад!A189","v":0}]
[null,null,null,null,null,null,null,null,null,{"$f":"Склад!A190","v":0}]
[null,null,null,null,null,null,null,null,null,{"$f":"Склад!A191","v":0}]
[null,null,null,null,null,null,null,null,null,{"$f":"Склад!A192","v":0}]
[null,null,null,null,null,null,null,null,null,{"$f":"Склад!A193","v":0}]
[null,null,null,null,null,null,null,null,null,{"$f":"Склад!A194","v":0}]
[null,null,null,null,null,null,null,null,null,{"$f":"Склад!A195","v":0}]
[null,null,null,null,null,null,null,null,null,{"$f":"Склад!A196","v":0}]
[null,null,null,null,null,null,null,null,null,{"$f":"Склад!A197","v":0}]
[null,null,null,null,null,null,null,null,null,{"$f":"Склад!A198","v":0}]
[null,null,null,null,null,null,null,null,null,{"$f":"Склад!A199","v":0}]
[null,null,null,null,null,null,null,null,null,{"$f":"Склад!A200","v":0}]
[null,null,null,null,null,null,null,null,null,{"$f":"Склад!A201","v":0}]
[null,null,null,null,null,null,null,null,null,{"$f":"Склад!A202","v":0}]
[null,null,null,null,null,null,null,null,null,{"$f":"Склад!A203","v":0}]
[null,null,null,null,null,null,null,null,null,{"$f":"Склад!A204","v":0}]
[null,null,null,null,null,null,null,null,null,{"$f":"Склад!A205","v":0}]
[null,null,null,null,null,null,null,null,null,{"$f":"Склад!A206","v":0}]
[null,null,null,null,null,null,null,null,null,{"$f":"Склад!A207","v":0}]
[null,null,null,null,null,null,null,null,null,{"$f":"Склад!A208","v":0}]
[null,null,null,null,null,null,null,null,null,{"$f":"Склад!A209","v":0}]
[null,null,null,null,null,null,null,null,null,{"$f":"Склад!A210","v":0}]
[null,null,null,null,null,null,null,null,null,{"$f":"Склад!A211","v":0}]
[null,null,null,null,null,null,null,null,null,{"$f":"Склад!A212","v":0}]
[null,null,null,null,null,null,null,null,null,{"$f":"Склад!A213","v":0}]
[null,null,null,null,null,null,null,null,null,{"$f":"Склад!A214","v":0}]
[null,null,null,null,null,null,null,null,null,{"$f":"Склад!A215","v":0}]
[null,null,null,null,null,null,null,null,null,{"$f":"Склад!A216","v":0}]
[null,null,null,null,null,null,null,null,null,{"$f":"Склад!A217","v":0}]
[null,null,null,null,null,null,null,null,null,{"$f":"Склад!A218","v":0}]
[null,null,null,null,null,null,null,null,null,{"$f":"Склад!A219","v":0}]
[null,null,null,null,null,null,null,null,null,{"$f":"Склад!A220","v":0}]
[null,null,null,null,null,null,null,null,null,{"$f":"Склад!A221","v":0}]
[null,null,null,null,null,null,null,null,null,{"$f":"Склад!A222","v":0}]
[null,null,null,null,null,null,null,null,null,{"$f":"Склад!A223","v":0}]
[null,null,null,null,null,null,null,null,null,{"$f":"Склад!A224","v":0}]
[null,null,null,null,null,null,null,null,null,{"$f":"Склад!A225","v":0}]
[null,null,null,null,null,null,null,null,null,{"$f":"Склад!A226","v":0}]
[null,null,null,null,null,null,null,null,null,{"$f":"Склад!A227","v":0}]
[null,null,null,null,null,null,null,null,null,{"$f":"Склад!A228","v":0}]
[null,null,null,null,null,null,null,null,null,{"$f":"Склад!A229","v":0}]
[null,null,null,null,null,null,null,null,null,{"$f":"Склад!A230","v":0}]
[null,null,null,null,null,null,null,null,null,{"$f":"Склад!A231","v":0}]
[null,null,null,null,null,null,null,null,null,{"$f":"Склад!A232","v":0}]
[null,null,null,null,null,null,null,null,null,{"$f":"Склад!A233","v":0}]
[null,null,null,null,null,null,null,null,null,{"$f":"Склад!A234","v":0}]
[null,null,null,null,null,null,null,null,null,{"$f":"Склад!A235","v":0}]
[null,null,null,null,null,null,null,null,null,{"$f":"Склад!A236","v":0}]
[null,null,null,null,null,null,null,null,null,{"$f":"Склад!A237","v":0}]
[null,null,null,null,null,null,null,null,null,{"$f":"Склад!A238","v":0}]
[null,null,null,null,null,null,null,null,null,{"$f":"Склад!A239","v":0}]
[null,null,null,null,null,null,null,null,null,{"$f":"Склад!A240","v":0}]
[null,null,null,null,null,null,null,null,null,{"$f":"Склад!A241","v":0}]
[null,null,null,null,null,null,null,null,null,{"$f":"Склад!A242","v":0}]
[null,null,null,null,null,null,null,null,null,{"$f":"Склад!A243","v":0}]
[null,null,null,null,null,null,null,null,null,{"$f":"Склад!A244","v":0}]
[null,null,null,null,null,null,null,null,null,{"$f":"Склад!A245","v":0}]
[null,null,null,null,null,null,null,null,null,{"$f":"Склад!A246","v":0}]
[null,null,null,null,null,null,null,null,null,{"$f":"Склад!A247","v":0}]
[null,null,null,null,null,null,null,null,null,{"$f":"Склад!A248","v":0}]
[null,null,null,null,null,null,null,null,null,{"$f":"Склад!A249","v":0}]
[null,null,null,null,null,null,null,null,null,{"$f":"Склад!A250","v":0}]
[null,null,null,null,null,null,null,null,null,{"$f":"Склад!A251","v":0}]
[null,null,null,null,null,null,null,null,null,{"$f":"Склад!A252","v":0}]
[null,null,null,null,null,null,null,null,null,{"$f":"Склад!A253","v":0}]
[null,null,null,null,null,null,null,null,null,{"$f":"Склад!A254","v":0}]
[null,null,null,null,null,null,null,null,null,{"$f":"Склад!A255","v":0}]
[null,null,null,null,null,null,null,null,null,{"$f":"Склад!A256","v":0}]
[null,null,null,null,null,null,null,null,null,{"$f":"Склад!A257","v":0}]
[null,null,null,null,null,null,null,null,null,{"$f":"Склад!A258","v":0}]
[null,null,null,null,null,null,null,null,null,{"$f":"Склад!A259","v":0}]
[null,null,null,null,null,null,null,null,null,{"$f":"Склад!A260","v":0}]
[null,null,null,null,null,null,null,null,null,{"$f":"Склад!A261","v":0}]
[null,null,null,null,null,null,null,null,null,{"$f":"Склад!A262","v":0}]
[null,null,null,null,null,null,null,null,null,{"$f":"Склад!A263","v":0}]
[null,null,null,null,null,null,null,null,null,{"$f":"Склад!A264","v":0}]
[null,null,null,null,null,null,null,null,null,{"$f":"Склад!A265","v":0}]
[null,null,null,null,null,null,null,null,null,{"$f":"Склад!A266","v":0}]
[null,null,null,null,null,null,null,null,null,{"$f":"Склад!A267","v":0}]
[null,null,null,null,null,null,null,null,null,{"$f":"Склад!A268","v":0}]
[null,null,null,null,null,null,null,null,null,{"$f":"Склад!A269","v":0}]
[null,null,null,null,null,null,null,null,null,{"$f":"Склад!A270","v":0}]
[null,null,null,null,null,null,null,null,null,{"$f":"Склад!A271","v":0}]
[null,null,null,null,null,null,null,null,null,{"$f":"Склад!A272","v":0}]
[null,null,null,null,null,null,null,null,null,{"$f":"Склад!A273","v":0}]
[null,null,null,null,null,null,null,null,null,{"$f":"Склад!A274","v":0}]
[null,null,null,null,null,null,null,null,null,{"$f":"Склад!A275","v":0}]
[null,null,null,null,null,null,null,null,null,{"$f":"Склад!A276","v":0}]
[null,null,null,null,null,null,null,null,null,{"$f":"Склад!A277","v":0}]
[null,null,null,null,null,null,null,null,null,{"$f":"Склад!A278","v":0}]
[null,null,null,null,null,null,null,null,null,{"$f":"Склад!A279","v":0}]
[null,null,null,null,null,null,null,null,null,{"$f":"Склад!A280","v":0}]
[null,null,null,null,null,null,null,null,null,{"$f":"Склад!A281","v":0}]
[null,null,null,null,null,null,null,null,null,{"$f":"Склад!A282","v":0}]
[null,null,null,null,null,null,null,null,null,{"$f":"Склад!A283","v":0}]
[null,null,null,null,null,null,null,null,null,{"$f":"Склад!A284","v":0}]
[null,null,null,null,null,null,null,null,null,{"$f":"Склад!A285","v":0}]
[null,null,null,null,null,null,null,null,null,{"$f":"Склад!A286","v":0}]
[null,null,null,null,null,null,null,null,null,{"$f":"Склад!A287","v":0}]
[null,null,null,null,null,null,null,null,null,{"$f":"Склад!A288","v":0}]
[null,null,null,null,null,null,null,null,null,{"$f":"Склад!A289","v":0}]
[null,null,null,null,null,null,null,null,null,{"$f":"Склад!A290","v":0}]
[null,null,null,null,null,null,null,null,null,{"$f":"Склад!A291","v":0}]
[null,null,null,null,null,null,null,null,null,{"$f":"Склад!A292","v":0}]
[null,null,null,null,null,null,null,null,null,{"$f":"Склад!A293","v":0}]
[null,null,null,null,null,null,null,null,null,{"$f":"Склад!A294","v":0}]
[null,null,null,null,null,null,null,null,null,{"$f":"Склад!A295","v":0}]
[null,null,null,null,null,null,null,null,null,{"$f":"Склад!A296","v":0}]
[null,null,null,null,null,null,null,null,null,{"$f":"Склад!A297","v":0}]
[null,null,null,null,null,null,null,null,null,{"$f":"Склад!A298","v":0}]
[null,null,null,null,null,null,null,null,null,{"$f":"Склад!A299","v":0}]
[null,null,null,null,null,null,null,null,null,{"$f":"Склад!A300","v":0}]
[null,null,null,null,null,null,null,null,null,{"$f":"Склад!A301","v":0}]
[null,null,null,null,null,null,null,null,null,{"$f":"Склад!A302","v":0}]
[null,null,null,null,null,null,null,null,null,{"$f":"Склад!A303","v":0}]
[null,null,null,null,null,null,null,null,null,{"$f":"Склад!A304","v":0}]
[null,null,null,null,null,null,null,null,null,{"$f":"Склад!A305","v":0}]
[null,null,null,null,null,null,null,null,null,{"$f":"Склад!A306","v":0}]
[null,null,null,null,null,null,null,null,null,{"$f":"Склад!A307","v":0}]
[null,null,null,null,null,null,null,null,null,{"$f":"Склад!A308","v":0}]
[null,null,null,null,null,null,null,null,null,{"$f":"Склад!A309","v":0}]
[null,null,null,null,null,null,null,null,null,{"$f":"Склад!A310","v":0}]
[null,null,null,null,null,null,null,null,null,{"$f":"Склад!A311","v":0}]
[null,null,null,null,null,null,null,null,null,{"$f":"Склад!A312","v":0}]
[null,null,null,null,null,null,null,null,null,{"$f":"Склад!A313","v":0}]
[null,null,null,null,null,null,null,null,null,{"$f":"Склад!A314","v":0}]
[null,null,null,null,null,null,null,null,null,{"$f":"Склад!A315","v":0}]
[null,null,null,null,null,null,null,null,null,{"$f":"Склад!A316","v":0}]
[null,null,null,null,null,null,null,null,null,{"$f":"Склад!A317","v":0}]
[null,null,null,null,null,null,null,null,null,{"$f":"Склад!A318","v":0}]
[null,null,null,null,null,null,null,null,null,{"$f":"Склад!A319","v":0}]
[null,null,null,null,null,null,null,null,null,{"$f":"Склад!A320","v":0}]
[null,null,null,null,null,null,null,null,null,{"$f":"Склад!A321","v":0}]
[null,null,null,null,null,null,null,null,null,{"$f":"Склад!A322","v":0}]
[null,null,null,null,null,null,null,null,null,{"$f":"Склад!A323","v":0}]
[null,null,null,null,null,null,null,null,null,{"$f":"Склад!A324","v":0}]
[null,null,null,null,null,null,null,null,null,{"$f":"Склад!A325","v":0}]
[null,null,null,null,null,null,null,null,null,{"$f":"Склад!A326","v":0}]
[null,null,null,null,null,null,null,null,null,{"$f":"Склад!A327","v":0}]
[null,null,null,null,null,null,null,null,null,{"$f":"Склад!A328","v":0}]
[null,null,null,null,null,null,null,null,null,{"$f":"Склад!A329","v":0}]
[null,null,null,null,null,null,null,null,null,{"$f":"Склад!A330","v":0}]
[null,null,null,null,null,null,null,null,null,{"$f":"Склад!A331","v":0}]
[null,null,null,null,null,null,null,null,null,{"$f":"Склад!A332","v":0}]
[null,null,null,null,null,null,null,null,null,{"$f":"Склад!A333","v":0}]
[null,null,null,null,null,null,null,null,null,{"$f":"Склад!A334","v":0}]
[null,null,null,null,null,null,null,null,null,{"$f":"Склад!A335","v":0}]
[null,null,null,null,null,null,null,null,null,{"$f":"Склад!A336","v":0}]
[null,null,null,null,null,null,null,null,null,{"$f":"Склад!A337","v":0}]
[null,null,null,null,null,null,null,null,null,{"$f":"Склад!A338","v":0}]
[null,null,null,null,null,null,null,null,null,{"$f":"Склад!A339","v":0}]
[null,null,null,null,null,null,null,null,null,{"$f":"Склад!A340","v":0}]
[null,null,null,null,null,null,null,null,null,{"$f":"Склад!A341","v":0}]
[null,null,null,null,null,null,null,null,null,{"$f":"Склад!A342","v":0}]
[null,null,null,null,null,null,null,null,null,{"$f":"Склад!A343","v":0}]
[null,null,null,null,null,null,null,null,null,{"$f":"Склад!A344","v":0}]
[null,null,null,null,null,null,null,null,null,{"$f":"Склад!A345","v":0}]
[null,null,null,null,null,null,null,null,null,{"$f":"Склад!A346","v":0}]
[null,null,null,null,null,null,null,null,null,{"$f":"Склад!A347","v":0}]
[null,null,null,null,null,null,null,null,null,{"$f":"Склад!A348","v":0}]
[null,null,null,null,null,null,null,null,null,{"$f":"Склад!A349","v":0}]
[null,null,null,null,null,null,null,null,null,{"$f":"Склад!A350","v":0}]
[null,null,null,null,null,null,null,null,null,{"$f":"Склад!A351","v":0}]
[null,null,null,null,null,null,null,null,null,{"$f":"Склад!A352","v":0}]
[null,null,null,null,null,null,null,null,null,{"$f":"Склад!A353","v":0}]
[null,null,null,null,null,null,null,null,null,{"$f":"Склад!A354","v":0}]
[null,null,null,null,null,null,null,null,null,{"$f":"Склад!A355","v":0}]
[null,null,null,null,null,null,null,null,null,{"$f":"Склад!A356","v":0}]
[null,null,null,null,null,null,null,null,null,{"$f":"Склад!A357","v":0}]
[null,null,null,null,null,null,null,null,null,{"$f":"Склад!A358","v":0}]
[null,null,null,null,null,null,null,null,null,{"$f":"Склад!A359","v":0}]
[null,null,null,null,null,null,null,null,null,{"$f":"Склад!A360","v":0}]
[null,null,null,null,null,null,null,null,null,{"$f":"Склад!A361","v":0}]
[null,null,null,null,null,null,null,null,null,{"$f":"Склад!A362","v":0}]
[null,null,null,null,null,null,null,null,null,{"$f":"Склад!A363","v":0}]
[null,null,null,null,null,null,null,null,null,{"$f":"Склад!A364","v":0}]
[null,null,null,null,null,null,null,null,null,{"$f":"Склад!A365","v":0}]
[null,null,null,null,null,null,null,null,null,{"$f":"Склад!A366","v":0}]
[null,null,null,null,null,null,null,null,null,{"$f":"Склад!A367","v":0}]
[null,null,null,null,null,null,null,null,null,{"$f":"Склад!A368","v":0}]
[null,null,null,null,null,null,null,null,null,{"$f":"Склад!A369","v":0}]
[null,null,null,null,null,null,null,null,null,{"$f":"Склад!A370","v":0}]
[null,null,null,null,null,null,null,null,null,{"$f":"Склад!A371","v":0}]
[null,null,null,null,null,null,null,null,null,{"$f":"Склад!A372","v":0}]
[null,null,null,null,null,null,null,null,null,{"$f":"Склад!A373","v":0}]
[null,null,null,null,null,null,null,null,null,{"$f":"Склад!A374","v":0}]
[null,null,null,null,null,null,null,null,null,{"$f":"Склад!A375","v":0}]
[null,null,null,null,null,null,null,null,null,{"$f":"Склад!A376","v":0}]
[null,null,null,null,null,null,null,null,null,{"$f":"Склад!A377","v":0}]
[null,null,null,null,null,null,null,null,null,{"$f":"Склад!A378","v":0}]
[null,null,null,null,null,null,null,null,null,{"$f":"Склад!A379","v":0}]
[null,null,null,null,null,null,null,null,null,{"$f":"Склад!A380","v":0}]
[null,null,null,null,null,null,null,null,null,{"$f":"Склад!A381","v":0}]
[null,null,null,null,null,null,null,null,null,{"$f":"Склад!A382","v":0}]
[null,null,null,null,null,null,null,null,null,{"$f":"Склад!A383","v":0}]
[null,null,null,null,null,null,null,null,null,{"$f":"Склад!A384","v":0}]
[null,null,null,null,null,null,null,null,null,{"$f":"Склад!A385","v":0}]
[null,null,null,null,null,null,null,null,null,{"$f":"Склад!A386","v":0}]
[null,null,null,null,null,null,null,null,null,{"$f":"Склад!A387","v":0}]
[null,null,null,null,null,null,null,null,null,{"$f":"Склад!A388","v":0}]
[null,null,null,null,null,null,null,null,null,{"$f":"Склад!A389","v":0}]
[null,null,null,null,null,null,null,null,null,{"$f":"Склад!A390","v":0}]
[null,null,null,null,null,null,null,null,null,{"$f":"Склад!A391","v":0}]
[null,null,null,null,null,null,null,null,null,{"$f":"Склад!A392","v":0}]
[null,null,null,null,null,null,null,null,null,{"$f":"Склад!A393","v":0}]
[null,null,null,null,null,null,null,null,null,{"$f":"Склад!A394","v":0}]
[null,null,null,null,null,null,null,null,null,{"$f":"Склад!A395","v":0}]
[null,null,null,null,null,null,null,null,null,{"$f":"Склад!A396","v":0}]
[null,null,null,null,null,null,null,null,null,{"$f":"Склад!A397","v":0}]
[null,null,null,null,null,null,null,null,null,{"$f":"Склад!A398","v":0}]
[null,null,null,null,null,null,null,null,null,{"$f":"Склад!A399","v":0}]
[null,null,null,null,null,null,null,null,null,{"$f":"Склад!A400","v":0}]
[null,null,null,null,null,null,null,null,null,{"$f":"Склад!A401","v":0}]
[null,null,null,null,null,null,null,null,null,{"$f":"Склад!A402","v":0}]
[null,null,null,null,null,null,null,null,null,{"$f":"Склад!A403","v":0}]
[null,null,null,null,null,null,null,null,null,{"$f":"Склад!A404","v":0}]
[null,null,null,null,null,null,null,null,null,{"$f":"Склад!A405","v":0}]
[null,null,null,null,null,null,null,null,null,{"$f":"Склад!A406","v":0}]
[null,null,null,null,null,null,null,null,null,{"$f":"Склад!A407","v":0}]
[null,null,null,null,null,null,null,null,null,{"$f":"Склад!A408","v":0}]
[null,null,null,null,null,null,null,null,null,{"$f":"Склад!A409","v":0}]
[null,null,null,null,null,null,null,null,null,{"$f":"Склад!A410","v":0}]
[null,null,null,null,null,null,null,null,null,{"$f":"Склад!A411","v":0}]
[null,null,null,null,null,null,null,null,null,{"$f":"Склад!A412","v":0}]
[null,null,null,null,null,null,null,null,null,{"$f":"Склад!A413","v":0}]
[null,null,null,null,null,null,null,null,null,{"$f":"Склад!A414","v":0}]
[null,null,null,null,null,null,null,null,null,{"$f":"Склад!A415","v":0}]
[null,null,null,null,null,null,null,null,null,{"$f":"Склад!A416","v":0}]
[null,null,null,null,null,null,null,null,null,{"$f":"Склад!A417","v":0}]
[null,null,null,null,null,null,null,null,null,{"$f":"Склад!A418","v":0}]
[null,null,null,null,null,null,null,null,null,{"$f":"Склад!A419","v":0}]
[null,null,null,null,null,null,null,null,null,{"$f":"Склад!A420","v":0}]
[null,null,null,null,null,null,null,null,null,{"$f":"Склад!A421","v":0}]
[null,null,null,null,null,null,null,null,null,{"$f":"Склад!A422","v":0}]
[null,null,null,null,null,null,null,null,null,{"$f":"Склад!A423","v":0}]
[null,null,null,null,null,null,null,null,null,{"$f":"Склад!A424","v":0}]
[null,null,null,null,null,null,null,null,null,{"$f":"Склад!A425","v":0}]
[null,null,null,null,null,null,null,null,null,{"$f":"Склад!A426","v":0}]
[null,null,null,null,null,null,null,null,null,{"$f":"Склад!A427","v":0}]
[null,null,null,null,null,null,null,null,null,{"$f":"Склад!A428","v":0}]
[null,null,null,null,null,null,null,null,null,{"$f":"Склад!A429","v":0}]
[null,null,null,null,null,null,null,null,null,{"$f":"Склад!A430","v":0}]
[null,null,null,null,null,null,null,null,null,{"$f":"Склад!A431","v":0}]
[null,null,null,null,null,null,null,null,null,{"$f":"Склад!A432","v":0}]
[null,null,null,null,null,null,null,null,null,{"$f":"Склад!A433","v":0}]
[null,null,null,null,null,null,null,null,null,{"$f":"Склад!A434","v":0}]
[null,null,null,null,null,null,null,null,null,{"$f":"Склад!A435","v":0}]
[null,null,null,null,null,null,null,null,null,{"$f":"Склад!A436","v":0}]
[null,null,null,null,null,null,null,null,null,{"$f":"Склад!A437","v":0}]
[null,null,null,null,null,null,null,null,null,{"$f":"Склад!A438","v":0}]
[null,null,null,null,null,null,null,null,null,{"$f":"Склад!A439","v":0}]
[null,null,null,null,null,null,null,null,null,{"$f":"Склад!A440","v":0}]
[null,null,null,null,null,null,null,null,null,{"$f":"Склад!A441","v":0}]
[null,null,null,null,null,null,null,null,null,{"$f":"Склад!A442","v":0}]
[null,null,null,null,null,null,null,null,null,{"$f":"Склад!A443","v":0}]
[null,null,null,null,null,null,null,null,null,{"$f":"Склад!A444","v":0}]
[null,null,null,null,null,null,null,null,null,{"$f":"Склад!A445","v":0}]
[null,null,null,null,null,null,null,null,null,{"$f":"Склад!A446","v":0}]
[null,null,null,null,null,null,null,null,null,{"$f":"Склад!A447","v":0}]
[null,null,null,null,null,null,null,null,null,{"$f":"Склад!A448","v":0}]
[null,null,null,null,null,null,null,null,null,{"$f":"Склад!A449","v":0}]
[null,null,null,null,null,null,null,null,null,{"$f":"Склад!A450","v":0}]
[null,null,null,null,null,null,null,null,null,{"$f":"Склад!A451","v":0}]
[null,null,null,null,null,null,null,null,null,{"$f":"Склад!A452","v":0}]
[null,null,null,null,null,null,null,null,null,{"$f":"Склад!A453","v":0}]
[null,null,null,null,null,null,null,null,null,{"$f":"Склад!A454","v":0}]
[null,null,null,null,null,null,null,null,null,{"$f":"Склад!A455","v":0}]
[null,null,null,null,null,null,null,null,null,{"$f":"Склад!A456","v":0}]
[null,null,null,null,null,null,null,null,null,{"$f":"Склад!A457","v":0}]
[null,null,null,null,null,null,null,null,null,{"$f":"Склад!A458","v":0}]
[null,null,null,null,null,null,null,null,null,{"$f":"Склад!A459","v":0}]
[null,null,null,null,null,null,null,null,null,{"$f":"Склад!A460","v":0}]
[null,null,null,null,null,null,null,null,null,{"$f":"Склад!A461","v":0}]
[null,null,null,null,null,null,null,null,null,{"$f":"Склад!A462","v":0}]
[null,null,null,null,null,null,null,null,null,{"$f":"Склад!A463","v":0}]
[null,null,null,null,null,null,null,null,null,{"$f":"Склад!A464","v":0}]
[null,null,null,null,null,null,null,null,null,{"$f":"Склад!A465","v":0}]
[null,null,null,null,null,null,null,null,null,{"$f":"Склад!A466","v":0}]
[null,null,null,null,null,null,null,null,null,{"$f":"Склад!A467","v":0}]
[null,null,null,null,null,null,null,null,null,{"$f":"Склад!A468","v":0}]
[null,null,null,null,null,null,null,null,null,{"$f":"Склад!A469","v":0}]
[null,null,null,null,null,null,null,null,null,{"$f":"Склад!A470","v":0}]
[null,null,null,null,null,null,null,null,null,{"$f":"Склад!A471","v":0}]
[null,null,null,null,null,null,null,null,null,{"$f":"Склад!A472","v":0}]
[null,null,null,null,null,null,null,null,null,{"$f":"Склад!A473","v":0}]
[null,null,null,null,null,null,null,null,null,{"$f":"Склад!A474","v":0}]
[null,null,null,null,null,null,null,null,null,{"$f":"Склад!A475","v":0}]
[null,null,null,null,null,null,null,null,null,{"$f":"Склад!A476","v":0}]
[null,null,null,null,null,null,null,null,null,{"$f":"Склад!A477","v":0}]
[null,null,null,null,null,null,null,null,null,{"$f":"Склад!A478","v":0}]
[null,null,null,null,null,null,null,null,null,{"$f":"Склад!A479","v":0}]
[null,null,null,null,null,null,null,null,null,{"$f":"Склад!A480","v":0}]
[null,null,null,null,null,null,null,null,null,{"$f":"Склад!A481","v":0}]
[null,null,null,null,null,null,null,null,null,{"$f":"Склад!A482","v":0}]
[null,null,null,null,null,null,null,null,null,{"$f":"Склад!A483","v":0}]
[null,null,null,null,null,null,null,null,null,{"$f":"Склад!A484","v":0}]
[null,null,null,null,null,null,null,null,null,{"$f":"Склад!A485","v":0}]
[null,null,null,null,null,null,null,null,null,{"$f":"Склад!A486","v":0}]
[null,null,null,null,null,null,null,null,null,{"$f":"Склад!A487","v":0}]
[null,null,null,null,null,null,null,null,null,{"$f":"Склад!A488","v":0}]
[null,null,null,null,null,null,null,null,null,{"$f":"Склад!A489","v":0}]
[null,null,null,null,null,null,null,null,null,{"$f":"Склад!A490","v":0}]
[null,null,null,null,null,null,null,null,null,{"$f":"Склад!A491","v":0}]
[null,null,null,null,null,null,null,null,null,{"$f":"Склад!A492","v":0}]
[null,null,null,null,null,null,null,null,null,{"$f":"Склад!A493","v":0}]
[null,null,null,null,null,null,null,null,null,{"$f":"Склад!A494","v":0}]
[null,null,null,null,null,null,null,null,null,{"$f":"Склад!A495","v":0}]
[null,null,null,null,null,null,null,null,null,{"$f":"Склад!A496","v":0}]

{"sheet":"Прочие расходы","index":2,"n_rows":0,"n_cols":0,"rows_kept":0,"cut":false,"hidden":false,"merged":[]}

{"sheet":"Склад","index":3,"n_rows":10,"n_cols":7,"rows_kept":10,"cut":false,"hidden":false,"merged":[[2,6,3,8]]}
["Наименование","Кол-во","Ед.изм.","Цена","Сумма"]
["Гвозди",50,"шт.",5,{"$f":"B2*D2","v":250},null,"Всего запчастей на сумму:"]
["Какашки",25,"шт.",100,2500,null,{"$f":"SUM(E2:E400)","v":22700}]
["Компрессор",2,"шт.",3000,6000]
["Масляный фильтр",19,"шт.",250,4750]
["Миномет",1,"шт.",2500,2500]
["Припой",40,"шт.",30,1200]
["Терморегулятор",2,"шт.",650,1300]
["Фантики",100,"шт.",2,200]
["Фреон",20,"л.",200,4000]

{"sheet":"Отчет","index":4,"n_rows":390,"n_cols":8,"rows_kept":390,"cut":false,"hidden":false,"merged":[[8,1,8,4],[8,0,9,0],[8,7,9,7],[8,5,9,5],[8,6,9,6]]}
[]
[]
[]
[]
[]
[]
[]
[]
["Дата","Статьи расхода",null,null,null,"Общий расход","Общий доход","Прибыль"]
[null,"Зап. Части","Топливо","Ремонт а/м","Налог"]
["2016-01-01",null,null,null,null,{"$f":"SUM(B11:E11)","v":0}]
["2016-01-02",null,null,null,null,{"$f":"SUM(B12:E12)","v":0}]
["2016-01-03",null,null,null,null,0]
["2016-01-04",null,null,null,null,0]
["2016-01-05",null,null,null,null,0]
["2016-01-06",null,null,null,null,0]
["2016-01-07",null,null,null,null,0]
["2016-01-08",null,null,null,null,0]
["2016-01-09",null,null,null,null,0]
["2016-01-10",null,null,null,null,0]
["2016-01-11",null,null,null,null,0]
["2016-01-12",null,null,null,null,0]
["2016-01-13",null,null,null,null,0]
["2016-01-14",null,null,null,null,0]
["2016-01-15",null,null,null,null,0]
["2016-01-16",null,null,null,null,0]
["2016-01-17",null,null,null,null,0]
["2016-01-18",null,null,null,null,0]
["2016-01-19",null,null,null,null,0]
["2016-01-20",null,null,null,null,0]
["2016-01-21",null,null,null,null,0]
["2016-01-22",null,null,null,null,0]
["2016-01-23",null,null,null,null,0]
["2016-01-24",null,null,null,null,0]
["2016-01-25",null,null,null,null,0]
["2016-01-26",null,null,null,null,0]
["2016-01-27",null,null,null,null,0]
["2016-01-28",null,null,null,null,0]
["2016-01-29",null,null,null,null,0]
["2016-01-30",null,null,null,null,0]
["2016-01-31",null,null,null,null,0]
["ИТОГО",{"$f":"SUM(B11:B41)","v":0},{"$f":"SUM(C11:C41)","v":0},0,0,0,null,0]
["2016-02-01",null,null,null,null,0]
["2016-02-02",null,null,null,null,0]
["2016-02-03",null,null,null,null,0]
["2016-02-04",null,null,null,null,0]
["2016-02-05",null,null,null,null,0]
["2016-02-06",null,null,null,null,0]
["2016-02-07",null,null,null,null,0]
["2016-02-08",null,null,null,null,0]
["2016-02-09",null,null,null,null,0]
["2016-02-10",null,null,null,null,0]
["2016-02-11",null,null,null,null,0]
["2016-02-12",null,null,null,null,0]
["2016-02-13",null,null,null,null,0]
["2016-02-14",null,null,null,null,0]
["2016-02-15",null,null,null,null,0]
["2016-02-16",null,null,null,null,0]
["2016-02-17",null,null,null,null,0]
["2016-02-18",null,null,null,null,0]
["2016-02-19",null,null,null,null,0]
["2016-02-20",null,null,null,null,0]
["2016-02-21",null,null,null,null,0]
["2016-02-22",null,null,null,null,0]
["2016-02-23",null,null,null,null,0]
["2016-02-24",null,null,null,null,0]
["2016-02-25",null,null,null,null,0]
["2016-02-26",null,null,null,null,0]
["2016-02-27",null,null,null,null,0]
["2016-02-28",null,null,null,null,0]
["2016-02-29",null,null,null,null,0]
["ИТОГО",{"$f":"SUM(B43:B71)","v":0},{"$f":"SUM(C43:C71)","v":0},0,0,0,null,0]
["2016-03-01",null,null,null,null,0]
["2016-03-02",null,null,null,null,0]
["2016-03-03",null,null,null,null,0]
["2016-03-04",null,null,null,null,{"$f":"SUM(B76:E76)","v":0}]
["2016-03-05",null,null,null,null,0]
["2016-03-06",null,null,null,null,0]
["2016-03-07",null,null,null,null,0]
["2016-03-08",null,null,null,null,0]
["2016-03-09",null,null,null,null,0]
["2016-03-10",null,null,null,null,0]
["2016-03-11",null,null,null,null,0]
["2016-03-12",null,null,null,null,0]
["2016-03-13",null,null,null,null,0]
["2016-03-14",null,null,null,null,0]
["2016-03-15",null,null,null,null,0]
["2016-03-16",null,null,null,null,0]
["2016-03-17",null,null,null,null,0]
["2016-03-18",null,null,null,null,0]
["2016-03-19",null,null,null,null,0]
["2016-03-20",null,null,null,null,0]
["2016-03-21",null,null,null,null,0]
["2016-03-22",null,null,null,null,0]
["2016-03-23",null,null,null,null,0]
["2016-03-24",null,null,null,null,0]
["2016-03-25",null,null,null,null,0]
["2016-03-26",null,null,null,null,0]
["2016-03-27",null,null,null,null,0]
["2016-03-28",null,null,null,null,0]
["2016-03-29",null,null,null,null,0]
["2016-03-30",null,null,null,null,0]
["2016-03-31",null,null,null,null,0]
["ИТОГО",{"$f":"SUM(B73:B103)","v":0},{"$f":"SUM(C73:C103)","v":0},0,0,0,null,0]
["2016-04-01",null,null,null,null,0]
["2016-04-02",null,null,null,null,0]
["2016-04-03",null,null,null,null,0]
["2016-04-04",null,null,null,null,0]
["2016-04-05",null,null,null,null,0]
["2016-04-06",null,null,null,null,0]
["2016-04-07",null,null,null,null,0]
["2016-04-08",null,null,null,null,0]
["2016-04-09",null,null,null,null,0]
["2016-04-10",null,null,null,null,0]
["2016-04-11",null,null,null,null,0]
["2016-04-12",null,null,null,null,0]
["2016-04-13",null,null,null,null,0]
["2016-04-14",null,null,null,null,0]
["2016-04-15",null,null,null,null,0]
["2016-04-16",null,null,null,null,0]
["2016-04-17",null,null,null,null,0]
["2016-04-18",null,null,null,null,0]
["2016-04-19",null,null,null,null,0]
["2016-04-20",null,null,null,null,0]
["2016-04-21",null,null,null,null,0]
["2016-04-22",null,null,null,null,0]
["2016-04-23",null,null,null,null,0]
["2016-04-24",null,null,null,null,0]
["2016-04-25",null,null,null,null,0]
["2016-04-26",null,null,null,null,0]
["2016-04-27",null,null,null,null,0]
["2016-04-28",null,null,null,null,0]
["2016-04-29",null,null,null,null,0]
["2016-04-30",null,null,null,null,0]
["ИТОГО",{"$f":"SUM(B105:B134)","v":0},{"$f":"SUM(C105:C134)","v":0},0,0,0,null,0]
["2016-05-01",null,null,null,null,0]
["2016-05-02",null,null,null,null,0]
["2016-05-03",null,null,null,null,0]
["2016-05-04",null,null,null,null,0]
["2016-05-05",null,null,null,null,{"$f":"SUM(B140:E140)","v":0}]
["2016-05-06",null,null,null,null,0]
["2016-05-07",null,null,null,null,0]
["2016-05-08",null,null,null,null,0]
["2016-05-09",null,null,null,null,0]
["2016-05-10",null,null,null,null,0]
["2016-05-11",null,null,null,null,0]
["2016-05-12",null,null,null,null,0]
["2016-05-13",null,null,null,null,0]
["2016-05-14",null,null,null,null,0]
["2016-05-15",null,null,null,null,0]
["2016-05-16",null,null,null,null,0]
["2016-05-17",null,null,null,null,0]
["2016-05-18",null,null,null,null,0]
["2016-05-19",null,null,null,null,0]
["2016-05-20",null,null,null,null,0]
["2016-05-21",null,null,null,null,0]
["2016-05-22",null,null,null,null,0]
["2016-05-23",null,null,null,null,0]
["2016-05-24",null,null,null,null,0]
["2016-05-25",null,null,null,null,0]
["2016-05-26",null,null,null,null,0]
["2016-05-27",null,null,null,null,0]
["2016-05-28",null,null,null,null,0]
["2016-05-29",null,null,null,null,0]
["2016-05-30",null,null,null,null,0]
["2016-05-31",null,null,null,null,0]
["ИТОГО",{"$f":"SUM(B136:B166)","v":0},{"$f":"SUM(C136:C166)","v":0},0,0,0,null,0]
["2016-06-01",null,null,null,null,0]
["2016-06-02",null,null,null,null,0]
["2016-06-03",null,null,null,null,0]
["2016-06-04",null,null,null,null,0]
["2016-06-05",null,null,null,null,0]
["2016-06-06",null,null,null,null,0]
["2016-06-07",null,null,null,null,0]
["2016-06-08",null,null,null,null,0]
["2016-06-09",null,null,null,null,0]
["2016-06-10",null,null,null,null,0]
["2016-06-11",null,null,null,null,0]
["2016-06-12",null,null,null,null,0]
["2016-06-13",null,null,null,null,0]
["2016-06-14",null,null,null,null,0]
["2016-06-15",null,null,null,null,0]
["2016-06-16",null,null,null,null,0]
["2016-06-17",null,null,null,null,0]
["2016-06-18",null,null,null,null,0]
["2016-06-19",null,null,null,null,0]
["2016-06-20",null,null,null,null,0]
["2016-06-21",null,null,null,null,0]
["2016-06-22",null,null,null,null,0]
["2016-06-23",null,null,null,null,0]
["2016-06-24",null,null,null,null,0]
["2016-06-25",null,null,null,null,0]
["2016-06-26",null,null,null,null,0]
["2016-06-27",null,null,null,null,0]
["2016-06-28",null,null,null,null,0]
["2016-06-29",null,null,null,null,0]
["2016-06-30",null,null,null,null,0]
["ИТОГО",{"$f":"SUM(B168:B197)","v":0},{"$f":"SUM(C168:C197)","v":0},0,0,0,null,0]
["2016-07-01",null,null,null,null,0]
["2016-07-02",null,null,null,null,0]
["2016-07-03",null,null,null,null,0]
["2016-07-04",null,null,null,null,0]
["2016-07-05",null,null,null,null,0]
["2016-07-06",null,null,null,null,{"$f":"SUM(B204:E204)","v":0}]
["2016-07-07",null,null,null,null,0]
["2016-07-08",null,null,null,null,0]
["2016-07-09",null,null,null,null,0]
["2016-07-10",null,null,null,null,0]
["2016-07-11",null,null,null,null,0]
["2016-07-12",null,null,null,null,0]
["2016-07-13",null,null,null,null,0]
["2016-07-14",null,null,null,null,0]
["2016-07-15",null,null,null,null,0]
["2016-07-16",null,null,null,null,0]
["2016-07-17",null,null,null,null,0]
["2016-07-18",null,null,null,null,0]
["2016-07-19",null,null,null,null,0]
["2016-07-20",null,null,null,null,0]
["2016-07-21",null,null,null,null,0]
["2016-07-22",null,null,null,null,0]
["2016-07-23",null,null,null,null,0]
["2016-07-24",null,null,null,null,0]
["2016-07-25",null,null,null,null,0]
["2016-07-26",null,null,null,null,0]
["2016-07-27",null,null,null,null,0]
["2016-07-28",null,null,null,null,0]
["2016-07-29",null,null,null,null,0]
["2016-07-30",null,null,null,null,0]
["2016-07-31",null,null,null,null,0]
["ИТОГО",{"$f":"SUM(B199:B229)","v":0},{"$f":"SUM(C199:C229)","v":0},0,0,0,null,0]
["2016-08-01",null,null,null,null,0]
["2016-08-02",null,null,null,null,0]
["2016-08-03",null,null,null,null,0]
["2016-08-04",null,null,null,null,0]
["2016-08-05",null,null,null,null,0]
["2016-08-06",null,null,null,null,0]
["2016-08-07",null,null,null,null,0]
["2016-08-08",null,null,null,null,0]
["2016-08-09",null,null,null,null,0]
["2016-08-10",null,null,null,null,0]
["2016-08-11",null,null,null,null,0]
["2016-08-12",null,null,null,null,0]
["2016-08-13",null,null,null,null,0]
["2016-08-14",null,null,null,null,0]
["2016-08-15",null,null,null,null,0]
["2016-08-16",null,null,null,null,0]
["2016-08-17",null,null,null,null,0]
["2016-08-18",null,null,null,null,0]
["2016-08-19",null,null,null,null,0]
["2016-08-20",null,null,null,null,0]
["2016-08-21",null,null,null,null,0]
["2016-08-22",null,null,null,null,0]
["2016-08-23",null,null,null,null,0]
["2016-08-24",null,null,null,null,0]
["2016-08-25",null,null,null,null,0]
["2016-08-26",null,null,null,null,0]
["2016-08-27",null,null,null,null,0]
["2016-08-28",null,null,null,null,0]
["2016-08-29",null,null,null,null,0]
["2016-08-30",null,null,null,null,0]
["2016-08-31",null,null,null,null,0]
["ИТОГО",{"$f":"SUM(B231:B261)","v":0},{"$f":"SUM(C231:C261)","v":0},0,0,0,null,0]
["2016-09-01",null,null,null,null,0]
["2016-09-02",null,null,null,null,0]
["2016-09-03",null,null,null,null,0]
["2016-09-04",null,null,null,null,0]
["2016-09-05",null,null,null,null,0]
["2016-09-06",null,null,null,null,{"$f":"SUM(B268:E268)","v":0}]
["2016-09-07",null,null,null,null,0]
["2016-09-08",null,null,null,null,0]
["2016-09-09",null,null,null,null,0]
["2016-09-10",null,null,null,null,0]
["2016-09-11",null,null,null,null,0]
["2016-09-12",null,null,null,null,0]
["2016-09-13",null,null,null,null,0]
["2016-09-14",null,null,null,null,0]
["2016-09-15",null,null,null,null,0]
["2016-09-16",null,null,null,null,0]
["2016-09-17",null,null,null,null,0]
["2016-09-18",null,null,null,null,0]
["2016-09-19",null,null,null,null,0]
["2016-09-20",null,null,null,null,0]
["2016-09-21",null,null,null,null,0]
["2016-09-22",null,null,null,null,0]
["2016-09-23",null,null,null,null,0]
["2016-09-24",null,null,null,null,0]
["2016-09-25",null,null,null,null,0]
["2016-09-26",null,null,null,null,0]
["2016-09-27",null,null,null,null,0]
["2016-09-28",null,null,null,null,0]
["2016-09-29",null,null,null,null,0]
["2016-09-30",null,null,null,null,0]
["ИТОГО",{"$f":"SUM(B263:B292)","v":0},{"$f":"SUM(C263:C292)","v":0},0,0,0,null,0]
["2016-10-01",null,null,null,null,0]
["2016-10-02",null,null,null,null,0]
["2016-10-03",null,null,null,null,0]
["2016-10-04",null,null,null,null,0]
["2016-10-05",null,null,null,null,0]
["2016-10-06",null,null,null,null,0]
["2016-10-07",null,null,null,null,0]
["2016-10-08",null,null,null,null,0]
["2016-10-09",null,null,null,null,0]
["2016-10-10",null,null,null,null,0]
["2016-10-11",null,null,null,null,0]
["2016-10-12",null,null,null,null,0]
["2016-10-13",null,null,null,null,0]
["2016-10-14",null,null,null,null,0]
["2016-10-15",null,null,null,null,0]
["2016-10-16",null,null,null,null,0]
["2016-10-17",null,null,null,null,0]
["2016-10-18",null,null,null,null,0]
["2016-10-19",null,null,null,null,0]
["2016-10-20",null,null,null,null,0]
["2016-10-21",null,null,null,null,0]
["2016-10-22",null,null,null,null,0]
["2016-10-23",null,null,null,null,0]
["2016-10-24",null,null,null,null,0]
["2016-10-25",null,null,null,null,0]
["2016-10-26",null,null,null,null,0]
["2016-10-27",null,null,null,null,0]
["2016-10-28",null,null,null,null,0]
["2016-10-29",null,null,null,null,0]
["2016-10-30",null,null,null,null,0]
["2016-10-31",null,null,null,null,0]
["ИТОГО",{"$f":"SUM(B294:B324)","v":0},{"$f":"SUM(C294:C324)","v":0},0,0,0,null,0]
["2016-11-01",null,null,null,null,0]
["2016-11-02",null,null,null,null,0]
["2016-11-03",null,null,null,null,0]
["2016-11-04",null,null,null,null,0]
["2016-11-05",null,null,null,null,0]
["2016-11-06",null,null,null,null,0]
["2016-11-07",null,null,null,null,{"$f":"SUM(B332:E332)","v":0}]
["2016-11-08",null,null,null,null,0]
["2016-11-09",null,null,null,null,0]
["2016-11-10",null,null,null,null,0]
["2016-11-11",null,null,null,null,0]
["2016-11-12",null,null,null,null,0]
["2016-11-13",null,null,null,null,0]
["2016-11-14",null,null,null,null,0]
["2016-11-15",null,null,null,null,0]
["2016-11-16",null,null,null,null,0]
["2016-11-17",null,null,null,null,0]
["2016-11-18",null,null,null,null,0]
["2016-11-19",null,null,null,null,0]
["2016-11-20",null,null,null,null,0]
["2016-11-21",null,null,null,null,0]
["2016-11-22",null,null,null,null,0]
["2016-11-23",null,null,null,null,0]
["2016-11-24",null,null,null,null,0]
["2016-11-25",null,null,null,null,0]
["2016-11-26",null,null,null,null,0]
["2016-11-27",null,null,null,null,0]
["2016-11-28",null,null,null,null,0]
["2016-11-29",null,null,null,null,0]
["2016-11-30",null,null,null,null,0]
["ИТОГО",{"$f":"SUM(B326:B355)","v":0},{"$f":"SUM(C326:C355)","v":0},0,0,0,null,0]
["2016-12-01",null,null,null,null,0]
["2016-12-02",null,null,null,null,0]
["2016-12-03",null,null,null,null,0]
["2016-12-04",null,null,null,null,0]
["2016-12-05",null,null,null,null,0]
["2016-12-06",null,null,null,null,0]
["2016-12-07",null,null,null,null,0]
["2016-12-08",null,null,null,null,0]
["2016-12-09",null,null,null,null,0]
["2016-12-10",null,null,null,null,0]
["2016-12-11",null,null,null,null,0]
["2016-12-12",null,null,null,null,0]
["2016-12-13",null,null,null,null,0]
["2016-12-14",null,null,null,null,0]
["2016-12-15",null,null,null,null,0]
["2016-12-16",null,null,null,null,0]
["2016-12-17",null,null,null,null,0]
["2016-12-18",null,null,null,null,0]
["2016-12-19",null,null,null,null,0]
["2016-12-20",null,null,null,null,0]
["2016-12-21",null,null,null,null,0]
["2016-12-22",null,null,null,null,0]
["2016-12-23",null,null,null,null,0]
["2016-12-24",null,null,null,null,0]
["2016-12-25",null,null,null,null,0]
["2016-12-26",null,null,null,null,0]
["2016-12-27",null,null,null,null,0]
["2016-12-28",null,null,null,null,0]
["2016-12-29",null,null,null,null,0]
["2016-12-30",null,null,null,null,0]
["2016-12-31",null,null,null,null,0]
["ИТОГО",{"$f":"SUM(B357:B387)","v":0},{"$f":"SUM(C357:C387)","v":0},0,0,0,null,0]
[]
["ИТОГО ЗА 2016 ГОД",{"$f":"B388+B356+B325+B293+B262+B230+B198+B167+B135+B104+B72+B42","v":0},{"$f":"C388+C356+C325+C293+C262+C230+C198+C167+C135+C104+C72+C42","v":0},0,0,null,null,0]